Workbook

Sheet Revision Data
A1: Document Control
A2: Revision Date | B2: By | C2: Comments
A3: Pre-2012 | B3: K. Fraley | C3: Original Creation of Youden Template by Ken Fraley.
A4: 20230213 | B4: G. Harris | C4: Introduction of User Instructions with Disclaimer and Document Control information - NO changes to calculations or functional operation of the Youden analysis tools or buttons. File was saved to xlsm since the buttons are macro driven. (Change for posting online if needed?)
A5: 2023-02-13 | B5: G. Harris | C5: Standardizing naming and formats of the PT-Plan and PT-Analysis templates. Making sure the Revisions and User Instruction tabs are consistent.

Sheet User Instructions
A2: Filename: | B2: =CELL("filename") -> C:\Users\glh\Desktop\[pt-analysis-youden-template-20230302.xlsm]LineGraphData
A3: Feedback: | B3: If you find errors, have feedback, questions or have suggestions on improvements, send an email to NIST Office of Weights and Measures, Laboratory Metrology Group: micheal.hicks@nist.gov, elizabeth.koncki@nist.gov, isabel.chavez.baucom@nist.gov.
A4: Disclaimer for Users Outside the OWM PT Program | B4: NOTICE: This workbook is provided by NIST Office of Weights and Measures (NIST OWM) as a tool to assist in the analysis of proficiency testing data developed under the NIST OWM Proficiency Testing Program as covered by "NISTIR 7214" "Office of Weights and Measures, Quality Manual For Proficiency Testing and Interlaboratory Comparisons". The equations, calculations, and formatting of this workbook have been verified and validated. However users for other applications are advised that they are responsible for ensuring this resource is correct and functions as used and the user of this workbook is responsible for validation and verification on their computer system. This workbook was developed solely to simplify the data analysis and presentation of proficiency test data in the NIST OWM Proficiency Testing Program. Use of this tool for other purposes is done at the sole risk of the user. Under no circumstances shall NIST OWM, or any of their partners that helped create the tools, be liable for any damages, including incidental, special or consequential damages, arising from the use of these workbooks or an inability to use them.
A5: Verify Version at OWM Link | B5: WARNING: If you distribute these tools through any means other than the NIST Office of Weights and Measures Laboratory Metrology group website at www.nist.gov/labmetrology, you should check that website to ensure the tool being provided is the latest version available, and provide information to users on how to check for updates and revisions to the tools.
A7: Item | B7: Instructions and Tips for Using this Workbook Ensure familiarity and use of Standard Operating Procedure for OWM PT Planning, Operating, Analyzing, and Reporting PT Results
A8: 1 | B8: Before using the Template, save this workbook as the name of the PT identified in the PT Plan, keeping analysis-youden in the file name with the latest revision date entered at the end of the filename as yyyymmdd. As the file is updated, "Save As" with a new date in the file name.
A9: 2 | B9: All cells in this workbook shaded in a color can have data entered. Non-shaded cells are locked to prevent accidental alteration. Review the DataEntry and YoudenGraph worksheets before continuing with these instructions to have a sense of what the 10 kg sample data looks like on the DataEntry and Youden Graph sheets.
A10: 3 | B10: On the DataEntry Sheet, replace the "template" information with the current PT information: RMAP Region, PT Item #1, PT Item #2, Applicable Tolerance, Data Analyzed using Median, Mean, or NIST (Enter exactly per instructions on the sheet, as this is used later), and enter Units.
A11: 4 | B11: On the DataEntry Sheet (cell K1) enter "yes" or "no" for NIST data if available; then enter values and uncertainties for the PT Items if pressing yes, for the data entry cells when they appear.
A12: 5 | B12: Press the Clear Data button to remove the template data used as an example. If macros were not enabled, you can delete the data in cells B10 through H17.
A13: 6 | B13: On the DataEntry Sheet, enter the Metrologist using the instructions in the PT Analysis Template for consistency (LabCode+Metrologist-Initials, e.g., OWM-GH for NIST Office of Weights and Measures and Georgia Harris).
A14: 7 | B14: On the DataEntry sheet, enter the date(s) of calibration. If the PT items were circulated independently for greater independent evaluations, there will be different dates for each item. It items were circulated together, the dates will be the same.
A15: 8 | B15: On the DataEntry sheet, enter the reported measurement result and associated uncertainty as reported by the metrologist. Make sure units are consistently reported (convert to standard units if needed and verify conversion with the metrologist). The PT Plan should have established the values and units to be reported for helping with analysis consistency.
A16: 9 | B16: Adjust the AXIS on the YoudenGraph sheet if/as needed and make sure the circle looks "circular". Try to ensure consistent X and Y axis formatting. E.g., the template sample data for the 10 kg standards shows -15 mg to + 15 mg on both the X and Y axis. This is a scatter plot graph and the circle calculations are included in this template. A separate reference paper and associated PPT presentation are available that describe the calculations associated with this specialty PT analysis graph. NOTE: if you pressed the Clear Data button and the data was deleted, there will be no 45 degree diagonal line to show systematic offsets, no circle, and no data when you review the YoudenGraph worksheet. If you have already entered data, it will show on the subsequent worksheets.
A17: 10 | B17: When the analysis is complete and you are ready to incorporate the analysis with the PT Final Report, select your PRINTER (PDF) (File, Print, dropdown for printer). Then, on the DataEntry sheet, press the PRINT Data Sheet button on the DataEntry sheet (you will need to name the file). Then, Print Youden Graph to PDF with another file name (e.g., add "a" or "b" to the end of the file name as needed), to compile the PDF pages with the PT Plan Report cover pages, and the PT Analysis report pages, to create the Final PT Report. The DataEntry sheet, Line Graphs, and Calculations are not needed when the usual PT Analysis template is used that includes line graphs.
A18: 11
A19: 12
A20: 13

Sheet DataEntry
A1: Data Entry Form for Youden Analysis | E1: Printing Note | J1: Are NIST Values Available? | K1: no | Q1: =Title&" ("&TEXT(R2,"mmm d, yy")&" thru "&TEXT(Q2,"mmm d, yy")&")" -> RMAP (Jan 1, 00 thru Oct 1, 00)
Q2: =MAX(C10:C39,F10:F39) -> 2000-10-01 | R2: =MIN(C10:C39,F10:F39) -> 2000-01-01
A3: RMAP Group: | B3: RMAP | J3: =IF(K1="yes","NIST "&B4&" Value =","") ->  | K3: 0
A4: PT Item #1: | B4: 10 kg #1 | J4: =IF(K1="yes","NIST "&B4&" Unc =","") ->  | K4: 2.1
A5: PT Item #2: | B5: 10 kg #2
A6: Tolerance: | B6: 23 | J6: =IF(K1="yes","NIST "&B5&" Value =","") ->  | K6: 0
A7: Data Analyzed Using: | B7: Median | J7: =IF(K1="yes","NIST "&B5&" Unc =","") ->  | K7: 2.1
A8: Units: | B8: milligrams
B9: Metrologist | C9: ="Date "&B4 -> Date 10 kg #1 | D9: =B4 -> 10 kg #1 | E9: ="Unc "&B4 -> Unc 10 kg #1 | F9: ="Date "&B5 -> Date 10 kg #2 | G9: =B5 -> 10 kg #2 | H9: ="Unc "&B5 -> Unc 10 kg #2 | J9: Ave Unc
A10: 1 | B10: A | C10: 2000-01-01 | D10: -2 | E10: 5 | F10: 2000-09-28 | G10: -7 | H10: 5 | J10: =IF(AND(E10>0,H10>0),AVERAGE(E10,H10),"") -> 5
A11: 2 | B11: B | C11: 2000-01-15 | D11: 1 | E11: 8 | F11: 2000-08-15 | G11: -3 | H11: 8 | J11: =IF(AND(E11>0,H11>0),AVERAGE(E11,H11),"") -> 8
A12: 3 | B12: C | C12: 2000-04-30 | D12: 4 | E12: 6 | F12: 2000-07-05 | G12: -8 | H12: 6 | J12: 6
A13: 4 | B13: D | C13: 2000-05-05 | D13: 3 | E13: 4 | F13: 2000-05-15 | G13: 9 | H13: 4 | J13: 4
A14: 5 | B14: E | C14: 2000-07-07 | D14: 2 | E14: 2 | F14: 2000-04-15 | G14: -4 | H14: 2 | J14: 2
A15: 6 | B15: F | C15: 2000-08-01 | D15: 0 | E15: 7 | F15: 2000-03-01 | G15: 2 | H15: 7 | J15: 7
A16: 7 | B16: G | C16: 2000-08-10 | D16: 1 | E16: 5 | F16: 2000-02-01 | G16: -1 | H16: 5 | J16: 5
A17: 8 | B17: H | C17: 2000-10-01 | D17: 2 | E17: 9 | F17: 2000-01-15 | G17: -3 | H17: 9 | J17: 9
A18: 9
A19: 10
A20: 11
A21: 12
A22: 13
A23: 14
A24: 15
A25: 16
A26: 17
A27: 18
A28: 19
A29: 20
A30: 21
A31: 22
A32: 23
A33: 24
A34: 25
A35: 26
A36: 27
A37: 28
A38: 29
A39: 30

Sheet YoudenGraph
H1: =DataEntry!Q1 -> RMAP (Jan 1, 00 thru Oct 1, 00)
B2: =YoudenCalculations!J10 -> 10 kg #1 | D2: =YoudenCalculations!K10 -> 10 kg #2 | K2: ="(All values are in "&DataEntry!B8&")" -> (All values are in milligrams)
A3: Median | B3: =YoudenCalculations!J5 -> 1.5 | D3: =YoudenCalculations!K5 -> -3 | K3: Youden sd = | L3: =YoudenCalculations!Q1 -> 2.919957115
A4: Mean | B4: =YoudenCalculations!J6 -> 1.375 | D4: =YoudenCalculations!K6 -> -1.875 | K4: Circle Radius = | L4: =YoudenCalculations!Q2 -> 7.153894932
A5: =YoudenCalculations!I7 ->  | B5: =YoudenCalculations!J7 ->  | D5: =YoudenCalculations!K7 ->  | K5: Circle Center = | L5: =DataEntry!B7 -> Median
A7: =YoudenCalculations!I10 -> Metrologist | B7: =YoudenCalculations!J10 -> 10 kg #1 | C7: =YoudenCalculations!K10 -> 10 kg #2 | D7: =YoudenCalculations!S10 -> Unc | E7: =YoudenCalculations!N10 -> SYS | F7: =YoudenCalculations!O10 -> RAN | G7: =YoudenCalculations!T10 -> Unc Test | I7: =IF(LineGraphData!S5>15,A7,"") ->  | J7: =IF(LineGraphData!S5>15,B7,"") ->  | K7: =IF(LineGraphData!S5>15,C7,"") ->  | L7: =IF(LineGraphData!S5>15,D7,"") ->  | M7: =IF(LineGraphData!S5>15,E7,"") ->  | N7: =IF(LineGraphData!S5>15,F7,"") ->  | O7: =IF(LineGraphData!S5>15,G7,"") -> 
A8: =YoudenCalculations!I11 -> A | B8: =YoudenCalculations!J11 -> -2 | C8: =YoudenCalculations!K11 -> -7 | D8: =YoudenCalculations!S11 -> 5 | E8: =YoudenCalculations!N11 -> -4.98288085 | F8: =YoudenCalculations!O11 -> 0.3321920566 | G8: =YoudenCalculations!T11 -> Warning | I8: =YoudenCalculations!I26 ->  | J8: =YoudenCalculations!J26 ->  | K8: =YoudenCalculations!K26 ->  | L8: =YoudenCalculations!S26 ->  | M8: =YoudenCalculations!N26 ->  | N8: =YoudenCalculations!O26 ->  | O8: =YoudenCalculations!T26 ->  | Q8: OUT R&S | R8: Both the random and systematic error exceed the uncertainty
A9: =YoudenCalculations!I12 -> B | B9: =YoudenCalculations!J12 -> 1 | C9: =YoudenCalculations!K12 -> -3 | D9: =YoudenCalculations!S12 -> 8 | E9: =YoudenCalculations!N12 -> -0.25 | F9: =YoudenCalculations!O12 -> 0.25 | G9: =YoudenCalculations!T12 -> IN | I9: =YoudenCalculations!I27 ->  | J9: =YoudenCalculations!J27 ->  | K9: =YoudenCalculations!K27 ->  | L9: =YoudenCalculations!S27 ->  | M9: =YoudenCalculations!N27 ->  | N9: =YoudenCalculations!O27 ->  | O9: =YoudenCalculations!T27 ->  | Q9: OUT Sys | R9: Only the systematic error exceeds the uncertainty
A10: =YoudenCalculations!I13 -> C | B10: =YoudenCalculations!J13 -> 4 | C10: =YoudenCalculations!K13 -> -8 | D10: =YoudenCalculations!S13 -> 6 | E10: =YoudenCalculations!N13 -> -1.397542486 | F10: =YoudenCalculations!O13 -> 4.192627458 | G10: =YoudenCalculations!T13 -> IN | I10: =YoudenCalculations!I28 ->  | J10: =YoudenCalculations!J28 ->  | K10: =YoudenCalculations!K28 ->  | L10: =YoudenCalculations!S28 ->  | M10: =YoudenCalculations!N28 ->  | N10: =YoudenCalculations!O28 ->  | O10: =YoudenCalculations!T28 ->  | Q10: OUT Ran | R10: Only the random portion of the error exceeds the uncertainty
A11: =YoudenCalculations!I14 -> D | B11: =YoudenCalculations!J14 -> 3 | C11: =YoudenCalculations!K14 -> 9 | D11: =YoudenCalculations!S14 -> 4 | E11: =YoudenCalculations!N14 -> 6.802529975 | F11: =YoudenCalculations!O14 -> 5.290856647 | G11: =YoudenCalculations!T14 -> OUT R&S | I11: =YoudenCalculations!I29 ->  | J11: =YoudenCalculations!J29 ->  | K11: =YoudenCalculations!K29 ->  | L11: =YoudenCalculations!S29 ->  | M11: =YoudenCalculations!N29 ->  | N11: =YoudenCalculations!O29 ->  | O11: =YoudenCalculations!T29 ->  | Q11: Warning | R11: Only the summation of the random and systematic errors exceed the uncertainty
A12: =YoudenCalculations!I15 -> E | B12: =YoudenCalculations!J15 -> 2 | C12: =YoudenCalculations!K15 -> -4 | D12: =YoudenCalculations!S15 -> 2 | E12: =YoudenCalculations!N15 -> -0.2795084972 | F12: =YoudenCalculations!O15 -> 0.8385254916 | G12: =YoudenCalculations!T15 -> IN | I12: =YoudenCalculations!I30 ->  | J12: =YoudenCalculations!J30 ->  | K12: =YoudenCalculations!K30 ->  | L12: =YoudenCalculations!S30 ->  | M12: =YoudenCalculations!N30 ->  | N12: =YoudenCalculations!O30 ->  | O12: =YoudenCalculations!T30 ->  | Q12: IN | R12: The measurement process appears to be within control
A13: =YoudenCalculations!I16 -> F | B13: =YoudenCalculations!J16 -> 0 | C13: =YoudenCalculations!K16 -> 2 | D13: =YoudenCalculations!S16 -> 7 | E13: =YoudenCalculations!N16 -> 1.827053639 | F13: =YoudenCalculations!O16 -> 3.393099615 | G13: =YoudenCalculations!T16 -> IN | I13: =YoudenCalculations!I31 ->  | J13: =YoudenCalculations!J31 ->  | K13: =YoudenCalculations!K31 ->  | L13: =YoudenCalculations!S31 ->  | M13: =YoudenCalculations!N31 ->  | N13: =YoudenCalculations!O31 ->  | O13: =YoudenCalculations!T31 -> 
A14: =YoudenCalculations!I17 -> G | B14: =YoudenCalculations!J17 -> 1 | C14: =YoudenCalculations!K17 -> -1 | D14: =YoudenCalculations!S17 -> 5 | E14: =YoudenCalculations!N17 -> 0.7730823048 | F14: =YoudenCalculations!O17 -> 1.288470508 | G14: =YoudenCalculations!T17 -> IN | I14: =YoudenCalculations!I32 ->  | J14: =YoudenCalculations!J32 ->  | K14: =YoudenCalculations!K32 ->  | L14: =YoudenCalculations!S32 ->  | M14: =YoudenCalculations!N32 ->  | N14: =YoudenCalculations!O32 ->  | O14: =YoudenCalculations!T32 -> 
A15: =YoudenCalculations!I18 -> H | B15: =YoudenCalculations!J18 -> 2 | C15: =YoudenCalculations!K18 -> -3 | D15: =YoudenCalculations!S18 -> 9 | E15: =YoudenCalculations!N18 -> 0.25 | F15: =YoudenCalculations!O18 -> 0.25 | G15: =YoudenCalculations!T18 -> IN | I15: =YoudenCalculations!I33 ->  | J15: =YoudenCalculations!J33 ->  | K15: =YoudenCalculations!K33 ->  | L15: =YoudenCalculations!S33 ->  | M15: =YoudenCalculations!N33 ->  | N15: =YoudenCalculations!O33 ->  | O15: =YoudenCalculations!T33 -> 
A16: =YoudenCalculations!I19 ->  | B16: =YoudenCalculations!J19 ->  | C16: =YoudenCalculations!K19 ->  | D16: =YoudenCalculations!S19 ->  | E16: =YoudenCalculations!N19 ->  | F16: =YoudenCalculations!O19 ->  | G16: =YoudenCalculations!T19 ->  | I16: =YoudenCalculations!I34 ->  | J16: =YoudenCalculations!J34 ->  | K16: =YoudenCalculations!K34 ->  | L16: =YoudenCalculations!S34 ->  | M16: =YoudenCalculations!N34 ->  | N16: =YoudenCalculations!O34 ->  | O16: =YoudenCalculations!T34 -> 
A17: =YoudenCalculations!I20 ->  | B17: =YoudenCalculations!J20 ->  | C17: =YoudenCalculations!K20 ->  | D17: =YoudenCalculations!S20 ->  | E17: =YoudenCalculations!N20 ->  | F17: =YoudenCalculations!O20 ->  | G17: =YoudenCalculations!T20 ->  | I17: =YoudenCalculations!I35 ->  | J17: =YoudenCalculations!J35 ->  | K17: =YoudenCalculations!K35 ->  | L17: =YoudenCalculations!S35 ->  | M17: =YoudenCalculations!N35 ->  | N17: =YoudenCalculations!O35 ->  | O17: =YoudenCalculations!T35 -> 
A18: =YoudenCalculations!I21 ->  | B18: =YoudenCalculations!J21 ->  | C18: =YoudenCalculations!K21 ->  | D18: =YoudenCalculations!S21 ->  | E18: =YoudenCalculations!N21 ->  | F18: =YoudenCalculations!O21 ->  | G18: =YoudenCalculations!T21 ->  | I18: =YoudenCalculations!I36 ->  | J18: =YoudenCalculations!J36 ->  | K18: =YoudenCalculations!K36 ->  | L18: =YoudenCalculations!S36 ->  | M18: =YoudenCalculations!N36 ->  | N18: =YoudenCalculations!O36 ->  | O18: =YoudenCalculations!T36 -> 
A19: =YoudenCalculations!I22 ->  | B19: =YoudenCalculations!J22 ->  | C19: =YoudenCalculations!K22 ->  | D19: =YoudenCalculations!S22 ->  | E19: =YoudenCalculations!N22 ->  | F19: =YoudenCalculations!O22 ->  | G19: =YoudenCalculations!T22 ->  | I19: =YoudenCalculations!I37 ->  | J19: =YoudenCalculations!J37 ->  | K19: =YoudenCalculations!K37 ->  | L19: =YoudenCalculations!S37 ->  | M19: =YoudenCalculations!N37 ->  | N19: =YoudenCalculations!O37 ->  | O19: =YoudenCalculations!T37 -> 
A20: =YoudenCalculations!I23 ->  | B20: =YoudenCalculations!J23 ->  | C20: =YoudenCalculations!K23 ->  | D20: =YoudenCalculations!S23 ->  | E20: =YoudenCalculations!N23 ->  | F20: =YoudenCalculations!O23 ->  | G20: =YoudenCalculations!T23 ->  | I20: =YoudenCalculations!I38 ->  | J20: =YoudenCalculations!J38 ->  | K20: =YoudenCalculations!K38 ->  | L20: =YoudenCalculations!S38 ->  | M20: =YoudenCalculations!N38 ->  | N20: =YoudenCalculations!O38 ->  | O20: =YoudenCalculations!T38 -> 
A21: =YoudenCalculations!I24 ->  | B21: =YoudenCalculations!J24 ->  | C21: =YoudenCalculations!K24 ->  | D21: =YoudenCalculations!S24 ->  | E21: =YoudenCalculations!N24 ->  | F21: =YoudenCalculations!O24 ->  | G21: =YoudenCalculations!T24 ->  | I21: =YoudenCalculations!I39 ->  | J21: =YoudenCalculations!J39 ->  | K21: =YoudenCalculations!K39 ->  | L21: =YoudenCalculations!S39 ->  | M21: =YoudenCalculations!N39 ->  | N21: =YoudenCalculations!O39 ->  | O21: =YoudenCalculations!T39 -> 
A22: =YoudenCalculations!I25 ->  | B22: =YoudenCalculations!J25 ->  | C22: =YoudenCalculations!K25 ->  | D22: =YoudenCalculations!S25 ->  | E22: =YoudenCalculations!N25 ->  | F22: =YoudenCalculations!O25 ->  | G22: =YoudenCalculations!T25 ->  | I22: =YoudenCalculations!I40 ->  | J22: =YoudenCalculations!J40 ->  | K22: =YoudenCalculations!K40 ->  | L22: =YoudenCalculations!S40 ->  | M22: =YoudenCalculations!N40 ->  | N22: =YoudenCalculations!O40 ->  | O22: =YoudenCalculations!T40 -> 

Sheet LineGraphs

Sheet LineGraphData
F1: =DataEntry!Q1 -> RMAP (Jan 1, 00 thru Oct 1, 00) | S1: =DataEntry!B7 -> Median | T1: =DataEntry!B7 -> Median | W1: =DataEntry!Q1&" "&C16&" (analyzed versus "&S1&")" -> RMAP (Jan 1, 00 thru Oct 1, 00) 10 kg #1 (analyzed versus Median) | AF1: =DataEntry!Q1&" "&I16&" (analyzed versus "&T1&")" -> RMAP (Jan 1, 00 thru Oct 1, 00) 10 kg #2 (analyzed versus Median) | AN1: =DataEntry!Q1&" Enormal Test (must be <1)" -> RMAP (Jan 1, 00 thru Oct 1, 00) Enormal Test (must be <1)
B2: =DataEntry!B4 -> 10 kg #1 | D2: =DataEntry!B5 -> 10 kg #2 | K2: ="(All values are in "&DataEntry!B8&")" -> (All values are in milligrams) | R2: Old 2sd = | S2: =STDEV(C17:C46)*2 -> 3.69362385 | T2: =STDEV(I17:I46)*2 -> 10.81995511 | X2: =C16&" Enormal" -> 10 kg #1 Enormal
A3: Median | B3: =YoudenCalculations!J5 -> 1.5 | D3: =YoudenCalculations!K5 -> -3 | I3: =DataEntry!B7&" Value "&B2&" =" -> Median Value 10 kg #1 = | J3: =YoudenCalculations!J1 -> 1.5 | K3: ="n="&S5 -> n=8 | R3: New 2sd= | S3: =STDEV(S17:S46)*2 -> 3.69362385 | T3: =STDEV(T17:T46)*2 -> 6.817344826 | AS3: =DataEntry!Q1&" Precision Ratio (must be >3)" -> RMAP (Jan 1, 00 thru Oct 1, 00) Precision Ratio (must be >3)
A4: Mean | B4: =YoudenCalculations!J6 -> 1.375 | D4: =YoudenCalculations!K6 -> -1.875 | I4: =DataEntry!B7&" Unc "&B2&" =" -> Median Unc 10 kg #1 = | J4: =YoudenCalculations!J2 -> 3.69362385 | K4: ="n="&S5 -> n=8 | R4: New Value = | S4: =IF(S1="NIST",B5,IF(S1="Median",MEDIAN(S17:S46),IF(S1="Mean",AVERAGE(S17:S46),"INPUT ERROR"))) -> 1.5 | T4: =IF(T1="NIST",D5,IF(T1="Median",MEDIAN(T17:T46),IF(T1="Mean",AVERAGE(T17:T46),"INPUT ERROR"))) -> -3
A5: =YoudenCalculations!I7 ->  | B5: =YoudenCalculations!J7 ->  | D5: =YoudenCalculations!K7 ->  | I5: ="New "&DataEntry!B7&" Value "&B2&" =" -> New Median Value 10 kg #1 = | J5: =IF($S$1="NIST",B5,S4) -> 1.5 | K5: ="n="&S6 -> n=8 | S5: =COUNT(DataEntry!D10:D39) -> 8 | T5: =COUNT(DataEntry!E10:E39) -> 8
I6: ="New "&DataEntry!B7&" Unc "&B2&" =" -> New Median Unc 10 kg #1 = | J6: =IF($S$1="NIST",J4,S3) -> 3.69362385 | K6: ="n="&S6 -> n=8 | S6: =COUNT(S17:S46) -> 8 | T6: =COUNT(T17:T46) -> 7
I8: =DataEntry!B7&" Value "&D2&" =" -> Median Value 10 kg #2 = | J8: =YoudenCalculations!K1 -> -3 | K8: ="n="&T5 -> n=8
I9: =DataEntry!B7&" Unc "&D2&" =" -> Median Unc 10 kg #2 = | J9: =YoudenCalculations!K2 -> 10.81995511 | K9: ="n="&T5 -> n=8
I10: ="New "&DataEntry!B7&" Value "&D2&" =" -> New Median Value 10 kg #2 = | J10: =IF($S$1="NIST",D5,T4) -> -3 | K10: ="n="&T6 -> n=7
I11: ="New "&DataEntry!B7&" Unc "&D2&" =" -> New Median Unc 10 kg #2 = | J11: =IF($S$1="NIST",J9,T3) -> 6.817344826 | K11: ="n="&T6 -> n=7
A14: =DataEntry!A6 -> Tolerance: | B14: =DataEntry!B6 -> 23 | F14: ="Data Analyzed versus the "&DataEntry!B7&" values" -> Data Analyzed versus the Median values
E15: <1 | F15: <1 | K15: <1 | L15: <1
A16: =YoudenCalculations!I10 -> Metrologist | B16: Date | C16: =YoudenCalculations!J10 -> 10 kg #1 | D16: =DataEntry!E9 -> Unc 10 kg #1 | E16: ="En "&C16 -> En 10 kg #1 | F16: ="Pn "&C16 -> Pn 10 kg #1 | G16: Out 2sd | H16: Date | I16: =YoudenCalculations!K10 -> 10 kg #2 | J16: =DataEntry!H9 -> Unc 10 kg #2 | K16: ="En "&I16 -> En 10 kg #2 | L16: ="Pn "&I16 -> Pn 10 kg #2 | M16: Out 2sd | S16: =C16 -> 10 kg #1 | T16: =I16 -> 10 kg #2 | V16: =A16 -> Metrologist | W16: Date | X16: =C16 -> 10 kg #1 | Y16: =D16 -> Unc 10 kg #1 | Z16: =S1 -> Median | AA16: =Z16&" Unc" -> Median Unc | AB16: =AA16 -> Median Unc | AE16: =A16 -> Metrologist | AF16: Date | AG16: =I16 -> 10 kg #2 | AH16: =J16 -> Unc 10 kg #2 | AI16: =T1 -> Median | AJ16: =AI16&" Unc" -> Median Unc | AK16: =AI16&" Unc" -> Median Unc | AN16: =A16 -> Metrologist | AO16: =E16 -> En 10 kg #1 | AP16: =K16 -> En 10 kg #2 | AQ16: EnLimit | AS16: =A16 -> Metrologist | AT16: =F16 -> Pn 10 kg #1 | AU16: =L16 -> Pn 10 kg #2 | AV16: PrLimit
A17: =YoudenCalculations!I11 -> A | B17: =IF(DataEntry!E10>0,DataEntry!C10,"") -> 2000-01-01 | C17: =YoudenCalculations!J11 -> -2 | D17: =IF(DataEntry!E10>0,DataEntry!E10,"") -> 5 | E17: =IF(DataEntry!E10>0,ABS(C17-YoudenCalculations!$J$1)/SQRT(D17^2+$J$6^2),"") -> 0.5630324549 | F17: =IF(DataEntry!E10>0,D17/$B$14,"") -> 0.2173913043 | G17: =IF(DataEntry!E10>0,IF(ABS(C17-YoudenCalculations!$J$1)>$S$2,"yes",""),"") ->  | H17: =IF(DataEntry!H10>0,DataEntry!F10,"") -> 2000-09-28 | I17: =YoudenCalculations!K11 -> -7 | J17: =IF(DataEntry!H10>0,DataEntry!H10,"") -> 5 | K17: =IF(DataEntry!H10>0,ABS(I17-YoudenCalculations!$K$1)/SQRT(J17^2+$J$11^2),"") -> 0.4731286994 | L17: =IF(DataEntry!H10>0,J17/$B$14,"") -> 0.2173913043 | M17: =IF(DataEntry!H10>0,IF(ABS(I17-YoudenCalculations!$K$1)>$T$2,"yes",""),"") ->  | S17: =IF(DataEntry!E10>0,IF(G17="yes","",C17),"") -> -2 | T17: =IF(DataEntry!E10>0,IF(M17="yes","",I17),"") -> -7 | U17: 1 | V17: =IF(DataEntry!E10>0,DataEntry!B10,#N/A) -> A | W17: =IF(DataEntry!E10>0,DataEntry!C10,#N/A) -> 2000-01-01 | X17: =IF(DataEntry!E10>0,DataEntry!D10,#N/A) -> -2 | Y17: =IF(DataEntry!E10>0,DataEntry!E10,#N/A) -> 5 | Z17: =IF(DataEntry!E10>0,$J$5,#N/A) -> 1.5 | AA17: =Z17+$J$6 -> 5.19362385 | AB17: =Z17-$J$6 -> -2.19362385 | AE17: =IF(DataEntry!H10>0,DataEntry!B10,#N/A) -> A | AF17: =IF(DataEntry!H10>0,DataEntry!F10,#N/A) -> 2000-09-28 | AG17: =IF(DataEntry!H10>0,DataEntry!G10,#N/A) -> -7 | AH17: =IF(DataEntry!H10>0,DataEntry!H10,#N/A) -> 5 | AI17: =IF(DataEntry!H10>0,$J$10,#N/A) -> -3 | AJ17: =AI17+$J$11 -> 3.817344826 | AK17: =AI17-$J$11 -> -9.817344826 | AN17: =IF(DataEntry!E10>0,A17,"") -> A | AO17: =IF(DataEntry!E10>0,E17,#N/A) -> 0.5630324549 | AP17: =IF(DataEntry!H10>0,K17,#N/A) -> 0.4731286994 | AQ17: =IF(DataEntry!H10>0,1,#N/A) -> 1 | AS17: =IF(DataEntry!E10>0,A17,"") -> A | AT17: =IF(DataEntry!E10>0,F17,#N/A) -> 0.2173913043 | AU17: =IF(DataEntry!H10>0,L17,#N/A) -> 0.2173913043 | AV17: =IF(DataEntry!H10>0,3,#N/A) -> 3
A18: =YoudenCalculations!I12 -> B | B18: =IF(DataEntry!E11>0,DataEntry!C11,"") -> 2000-01-15 | C18: =YoudenCalculations!J12 -> 1 | D18: =IF(DataEntry!E11>0,DataEntry!E11,"") -> 8 | E18: =IF(DataEntry!E11>0,ABS(C18-YoudenCalculations!$J$1)/SQRT(D18^2+$J$6^2),"") -> 0.05674390897 | F18: =IF(DataEntry!E11>0,D18/$B$14,"") -> 0.347826087 | G18: =IF(DataEntry!E11>0,IF(ABS(C18-YoudenCalculations!$J$1)>$S$2,"yes",""),"") ->  | H18: =IF(DataEntry!H11>0,DataEntry!F11,"") -> 2000-08-15 | I18: =YoudenCalculations!K12 -> -3 | J18: =IF(DataEntry!H11>0,DataEntry!H11,"") -> 8 | K18: =IF(DataEntry!H11>0,ABS(I18-YoudenCalculations!$K$1)/SQRT(J18^2+$J$11^2),"") -> 0 | L18: =IF(DataEntry!H11>0,J18/$B$14,"") -> 0.347826087 | M18: =IF(DataEntry!H11>0,IF(ABS(I18-YoudenCalculations!$K$1)>$T$2,"yes",""),"") ->  | S18: =IF(DataEntry!E11>0,IF(G18="yes","",C18),"") -> 1 | T18: =IF(DataEntry!E11>0,IF(M18="yes","",I18),"") -> -3 | U18: 2 | V18: =IF(DataEntry!E11>0,DataEntry!B11,#N/A) -> B | W18: =IF(DataEntry!E11>0,DataEntry!C11,#N/A) -> 2000-01-15 | X18: =IF(DataEntry!E11>0,DataEntry!D11,#N/A) -> 1 | Y18: =IF(DataEntry!E11>0,DataEntry!E11,#N/A) -> 8 | Z18: =IF(DataEntry!E11>0,$J$5,#N/A) -> 1.5 | AA18: =Z18+$J$6 -> 5.19362385 | AB18: =Z18-$J$6 -> -2.19362385 | AE18: =IF(DataEntry!H11>0,DataEntry!B11,#N/A) -> B | AF18: =IF(DataEntry!H11>0,DataEntry!F11,#N/A) -> 2000-08-15 | AG18: =IF(DataEntry!H11>0,DataEntry!G11,#N/A) -> -3 | AH18: =IF(DataEntry!H11>0,DataEntry!H11,#N/A) -> 8 | AI18: =IF(DataEntry!H11>0,$J$10,#N/A) -> -3 | AJ18: =AI18+$J$11 -> 3.817344826 | AK18: =AI18-$J$11 -> -9.817344826 | AN18: =IF(DataEntry!E11>0,A18,"") -> B | AO18: =IF(DataEntry!E11>0,E18,#N/A) -> 0.05674390897 | AP18: =IF(DataEntry!H11>0,K18,#N/A) -> 0 | AQ18: =IF(DataEntry!H11>0,1,#N/A) -> 1 | AS18: =IF(DataEntry!E11>0,A18,"") -> B | AT18: =IF(DataEntry!E11>0,F18,#N/A) -> 0.347826087 | AU18: =IF(DataEntry!H11>0,L18,#N/A) -> 0.347826087 | AV18: =IF(DataEntry!H11>0,3,#N/A) -> 3
A19: =YoudenCalculations!I13 -> C | B19: =IF(DataEntry!E12>0,DataEntry!C12,"") -> 2000-04-30 | C19: =YoudenCalculations!J13 -> 4 | D19: =IF(DataEntry!E12>0,DataEntry!E12,"") -> 6 | E19: =IF(DataEntry!E12>0,ABS(C19-YoudenCalculations!$J$1)/SQRT(D19^2+$J$6^2),"") -> 0.3548228862 | F19: =IF(DataEntry!E12>0,D19/$B$14,"") -> 0.2608695652 | G19: =IF(DataEntry!E12>0,IF(ABS(C19-YoudenCalculations!$J$1)>$S$2,"yes",""),"") ->  | H19: =IF(DataEntry!H12>0,DataEntry!F12,"") -> 2000-07-05 | I19: =YoudenCalculations!K13 -> -8 | J19: =IF(DataEntry!H12>0,DataEntry!H12,"") -> 6 | K19: =IF(DataEntry!H12>0,ABS(I19-YoudenCalculations!$K$1)/SQRT(J19^2+$J$11^2),"") -> 0.5505613344 | L19: =IF(DataEntry!H12>0,J19/$B$14,"") -> 0.2608695652 | M19: =IF(DataEntry!H12>0,IF(ABS(I19-YoudenCalculations!$K$1)>$T$2,"yes",""),"") ->  | S19: =IF(DataEntry!E12>0,IF(G19="yes","",C19),"") -> 4 | T19: =IF(DataEntry!E12>0,IF(M19="yes","",I19),"") -> -8 | U19: 3 | V19: =IF(DataEntry!E12>0,DataEntry!B12,#N/A) -> C | W19: =IF(DataEntry!E12>0,DataEntry!C12,#N/A) -> 2000-04-30 | X19: =IF(DataEntry!E12>0,DataEntry!D12,#N/A) -> 4 | Y19: =IF(DataEntry!E12>0,DataEntry!E12,#N/A) -> 6 | Z19: =IF(DataEntry!E12>0,$J$5,#N/A) -> 1.5 | AA19: 5.19362385 | AB19: -2.19362385 | AE19: =IF(DataEntry!H12>0,DataEntry!B12,#N/A) -> C | AF19: =IF(DataEntry!H12>0,DataEntry!F12,#N/A) -> 2000-07-05 | AG19: =IF(DataEntry!H12>0,DataEntry!G12,#N/A) -> -8 | AH19: =IF(DataEntry!H12>0,DataEntry!H12,#N/A) -> 6 | AI19: =IF(DataEntry!H12>0,$J$10,#N/A) -> -3 | AJ19: 3.817344826 | AK19: -9.817344826 | AN19: =IF(DataEntry!E12>0,A19,"") -> C | AO19: =IF(DataEntry!E12>0,E19,#N/A) -> 0.3548228862 | AP19: =IF(DataEntry!H12>0,K19,#N/A) -> 0.5505613344 | AQ19: =IF(DataEntry!H12>0,1,#N/A) -> 1 | AS19: =IF(DataEntry!E12>0,A19,"") -> C | AT19: =IF(DataEntry!E12>0,F19,#N/A) -> 0.2608695652 | AU19: =IF(DataEntry!H12>0,L19,#N/A) -> 0.2608695652 | AV19: =IF(DataEntry!H12>0,3,#N/A) -> 3
A20: =YoudenCalculations!I14 -> D | B20: =IF(DataEntry!E13>0,DataEntry!C13,"") -> 2000-05-05 | C20: =YoudenCalculations!J14 -> 3 | D20: =IF(DataEntry!E13>0,DataEntry!E13,"") -> 4 | E20: =IF(DataEntry!E13>0,ABS(C20-YoudenCalculations!$J$1)/SQRT(D20^2+$J$6^2),"") -> 0.275506106 | F20: =IF(DataEntry!E13>0,D20/$B$14,"") -> 0.1739130435 | G20: =IF(DataEntry!E13>0,IF(ABS(C20-YoudenCalculations!$J$1)>$S$2,"yes",""),"") ->  | H20: =IF(DataEntry!H13>0,DataEntry!F13,"") -> 2000-05-15 | I20: =YoudenCalculations!K14 -> 9 | J20: =IF(DataEntry!H13>0,DataEntry!H13,"") -> 4 | K20: =IF(DataEntry!H13>0,ABS(I20-YoudenCalculations!$K$1)/SQRT(J20^2+$J$11^2),"") -> 1.518182482 | L20: =IF(DataEntry!H13>0,J20/$B$14,"") -> 0.1739130435 | M20: =IF(DataEntry!H13>0,IF(ABS(I20-YoudenCalculations!$K$1)>$T$2,"yes",""),"") -> yes | S20: =IF(DataEntry!E13>0,IF(G20="yes","",C20),"") -> 3 | T20: =IF(DataEntry!E13>0,IF(M20="yes","",I20),"") ->  | U20: 4 | V20: =IF(DataEntry!E13>0,DataEntry!B13,#N/A) -> D | W20: =IF(DataEntry!E13>0,DataEntry!C13,#N/A) -> 2000-05-05 | X20: =IF(DataEntry!E13>0,DataEntry!D13,#N/A) -> 3 | Y20: =IF(DataEntry!E13>0,DataEntry!E13,#N/A) -> 4 | Z20: =IF(DataEntry!E13>0,$J$5,#N/A) -> 1.5 | AA20: 5.19362385 | AB20: -2.19362385 | AE20: =IF(DataEntry!H13>0,DataEntry!B13,#N/A) -> D | AF20: =IF(DataEntry!H13>0,DataEntry!F13,#N/A) -> 2000-05-15 | AG20: =IF(DataEntry!H13>0,DataEntry!G13,#N/A) -> 9 | AH20: =IF(DataEntry!H13>0,DataEntry!H13,#N/A) -> 4 | AI20: =IF(DataEntry!H13>0,$J$10,#N/A) -> -3 | AJ20: 3.817344826 | AK20: -9.817344826 | AN20: =IF(DataEntry!E13>0,A20,"") -> D | AO20: =IF(DataEntry!E13>0,E20,#N/A) -> 0.275506106 | AP20: =IF(DataEntry!H13>0,K20,#N/A) -> 1.518182482 | AQ20: =IF(DataEntry!H13>0,1,#N/A) -> 1 | AS20: =IF(DataEntry!E13>0,A20,"") -> D | AT20: =IF(DataEntry!E13>0,F20,#N/A) -> 0.1739130435 | AU20: =IF(DataEntry!H13>0,L20,#N/A) -> 0.1739130435 | AV20: =IF(DataEntry!H13>0,3,#N/A) -> 3
A21: =YoudenCalculations!I15 -> E | B21: =IF(DataEntry!E14>0,DataEntry!C14,"") -> 2000-07-07 | C21: =YoudenCalculations!J15 -> 2 | D21: =IF(DataEntry!E14>0,DataEntry!E14,"") -> 2 | E21: =IF(DataEntry!E14>0,ABS(C21-YoudenCalculations!$J$1)/SQRT(D21^2+$J$6^2),"") -> 0.1190379792 | F21: =IF(DataEntry!E14>0,D21/$B$14,"") -> 0.08695652174 | G21: =IF(DataEntry!E14>0,IF(ABS(C21-YoudenCalculations!$J$1)>$S$2,"yes",""),"") ->  | H21: =IF(DataEntry!H14>0,DataEntry!F14,"") -> 2000-04-15 | I21: =YoudenCalculations!K15 -> -4 | J21: =IF(DataEntry!H14>0,DataEntry!H14,"") -> 2 | K21: =IF(DataEntry!H14>0,ABS(I21-YoudenCalculations!$K$1)/SQRT(J21^2+$J$11^2),"") -> 0.1407526936 | L21: =IF(DataEntry!H14>0,J21/$B$14,"") -> 0.08695652174 | M21: =IF(DataEntry!H14>0,IF(ABS(I21-YoudenCalculations!$K$1)>$T$2,"yes",""),"") ->  | S21: =IF(DataEntry!E14>0,IF(G21="yes","",C21),"") -> 2 | T21: =IF(DataEntry!E14>0,IF(M21="yes","",I21),"") -> -4 | U21: 5 | V21: =IF(DataEntry!E14>0,DataEntry!B14,#N/A) -> E | W21: =IF(DataEntry!E14>0,DataEntry!C14,#N/A) -> 2000-07-07 | X21: =IF(DataEntry!E14>0,DataEntry!D14,#N/A) -> 2 | Y21: =IF(DataEntry!E14>0,DataEntry!E14,#N/A) -> 2 | Z21: =IF(DataEntry!E14>0,$J$5,#N/A) -> 1.5 | AA21: 5.19362385 | AB21: -2.19362385 | AE21: =IF(DataEntry!H14>0,DataEntry!B14,#N/A) -> E | AF21: =IF(DataEntry!H14>0,DataEntry!F14,#N/A) -> 2000-04-15 | AG21: =IF(DataEntry!H14>0,DataEntry!G14,#N/A) -> -4 | AH21: =IF(DataEntry!H14>0,DataEntry!H14,#N/A) -> 2 | AI21: =IF(DataEntry!H14>0,$J$10,#N/A) -> -3 | AJ21: 3.817344826 | AK21: -9.817344826 | AN21: =IF(DataEntry!E14>0,A21,"") -> E | AO21: =IF(DataEntry!E14>0,E21,#N/A) -> 0.1190379792 | AP21: =IF(DataEntry!H14>0,K21,#N/A) -> 0.1407526936 | AQ21: =IF(DataEntry!H14>0,1,#N/A) -> 1 | AS21: =IF(DataEntry!E14>0,A21,"") -> E | AT21: =IF(DataEntry!E14>0,F21,#N/A) -> 0.08695652174 | AU21: =IF(DataEntry!H14>0,L21,#N/A) -> 0.08695652174 | AV21: =IF(DataEntry!H14>0,3,#N/A) -> 3
A22: =YoudenCalculations!I16 -> F | B22: =IF(DataEntry!E15>0,DataEntry!C15,"") -> 2000-08-01 | C22: =YoudenCalculations!J16 -> 0 | D22: =IF(DataEntry!E15>0,DataEntry!E15,"") -> 7 | E22: =IF(DataEntry!E15>0,ABS(C22-YoudenCalculations!$J$1)/SQRT(D22^2+$J$6^2),"") -> 0.1895201887 | F22: =IF(DataEntry!E15>0,D22/$B$14,"") -> 0.3043478261 | G22: =IF(DataEntry!E15>0,IF(ABS(C22-YoudenCalculations!$J$1)>$S$2,"yes",""),"") ->  | H22: =IF(DataEntry!H15>0,DataEntry!F15,"") -> 2000-03-01 | I22: =YoudenCalculations!K16 -> 2 | J22: =IF(DataEntry!H15>0,DataEntry!H15,"") -> 7 | K22: =IF(DataEntry!H15>0,ABS(I22-YoudenCalculations!$K$1)/SQRT(J22^2+$J$11^2),"") -> 0.5117083022 | L22: =IF(DataEntry!H15>0,J22/$B$14,"") -> 0.3043478261 | M22: =IF(DataEntry!H15>0,IF(ABS(I22-YoudenCalculations!$K$1)>$T$2,"yes",""),"") ->  | S22: =IF(DataEntry!E15>0,IF(G22="yes","",C22),"") -> 0 | T22: =IF(DataEntry!E15>0,IF(M22="yes","",I22),"") -> 2 | U22: 6 | V22: =IF(DataEntry!E15>0,DataEntry!B15,#N/A) -> F | W22: =IF(DataEntry!E15>0,DataEntry!C15,#N/A) -> 2000-08-01 | X22: =IF(DataEntry!E15>0,DataEntry!D15,#N/A) -> 0 | Y22: =IF(DataEntry!E15>0,DataEntry!E15,#N/A) -> 7 | Z22: =IF(DataEntry!E15>0,$J$5,#N/A) -> 1.5 | AA22: 5.19362385 | AB22: -2.19362385 | AE22: =IF(DataEntry!H15>0,DataEntry!B15,#N/A) -> F | AF22: =IF(DataEntry!H15>0,DataEntry!F15,#N/A) -> 2000-03-01 | AG22: =IF(DataEntry!H15>0,DataEntry!G15,#N/A) -> 2 | AH22: =IF(DataEntry!H15>0,DataEntry!H15,#N/A) -> 7 | AI22: =IF(DataEntry!H15>0,$J$10,#N/A) -> -3 | AJ22: 3.817344826 | AK22: -9.817344826 | AN22: =IF(DataEntry!E15>0,A22,"") -> F | AO22: =IF(DataEntry!E15>0,E22,#N/A) -> 0.1895201887 | AP22: =IF(DataEntry!H15>0,K22,#N/A) -> 0.5117083022 | AQ22: =IF(DataEntry!H15>0,1,#N/A) -> 1 | AS22: =IF(DataEntry!E15>0,A22,"") -> F | AT22: =IF(DataEntry!E15>0,F22,#N/A) -> 0.3043478261 | AU22: =IF(DataEntry!H15>0,L22,#N/A) -> 0.3043478261 | AV22: =IF(DataEntry!H15>0,3,#N/A) -> 3
A23: =YoudenCalculations!I17 -> G | B23: =IF(DataEntry!E16>0,DataEntry!C16,"") -> 2000-08-10 | C23: =YoudenCalculations!J17 -> 1 | D23: =IF(DataEntry!E16>0,DataEntry!E16,"") -> 5 | E23: =IF(DataEntry!E16>0,ABS(C23-YoudenCalculations!$J$1)/SQRT(D23^2+$J$6^2),"") -> 0.08043320784 | F23: =IF(DataEntry!E16>0,D23/$B$14,"") -> 0.2173913043 | G23: =IF(DataEntry!E16>0,IF(ABS(C23-YoudenCalculations!$J$1)>$S$2,"yes",""),"") ->  | H23: =IF(DataEntry!H16>0,DataEntry!F16,"") -> 2000-02-01 | I23: =YoudenCalculations!K17 -> -1 | J23: =IF(DataEntry!H16>0,DataEntry!H16,"") -> 5 | K23: =IF(DataEntry!H16>0,ABS(I23-YoudenCalculations!$K$1)/SQRT(J23^2+$J$11^2),"") -> 0.2365643497 | L23: =IF(DataEntry!H16>0,J23/$B$14,"") -> 0.2173913043 | M23: =IF(DataEntry!H16>0,IF(ABS(I23-YoudenCalculations!$K$1)>$T$2,"yes",""),"") ->  | S23: =IF(DataEntry!E16>0,IF(G23="yes","",C23),"") -> 1 | T23: =IF(DataEntry!E16>0,IF(M23="yes","",I23),"") -> -1 | U23: 7 | V23: =IF(DataEntry!E16>0,DataEntry!B16,#N/A) -> G | W23: =IF(DataEntry!E16>0,DataEntry!C16,#N/A) -> 2000-08-10 | X23: =IF(DataEntry!E16>0,DataEntry!D16,#N/A) -> 1 | Y23: =IF(DataEntry!E16>0,DataEntry!E16,#N/A) -> 5 | Z23: =IF(DataEntry!E16>0,$J$5,#N/A) -> 1.5 | AA23: 5.19362385 | AB23: -2.19362385 | AE23: =IF(DataEntry!H16>0,DataEntry!B16,#N/A) -> G | AF23: =IF(DataEntry!H16>0,DataEntry!F16,#N/A) -> 2000-02-01 | AG23: =IF(DataEntry!H16>0,DataEntry!G16,#N/A) -> -1 | AH23: =IF(DataEntry!H16>0,DataEntry!H16,#N/A) -> 5 | AI23: =IF(DataEntry!H16>0,$J$10,#N/A) -> -3 | AJ23: 3.817344826 | AK23: -9.817344826 | AN23: =IF(DataEntry!E16>0,A23,"") -> G | AO23: =IF(DataEntry!E16>0,E23,#N/A) -> 0.08043320784 | AP23: =IF(DataEntry!H16>0,K23,#N/A) -> 0.2365643497 | AQ23: =IF(DataEntry!H16>0,1,#N/A) -> 1 | AS23: =IF(DataEntry!E16>0,A23,"") -> G | AT23: =IF(DataEntry!E16>0,F23,#N/A) -> 0.2173913043 | AU23: =IF(DataEntry!H16>0,L23,#N/A) -> 0.2173913043 | AV23: =IF(DataEntry!H16>0,3,#N/A) -> 3
A24: =YoudenCalculations!I18 -> H | B24: =IF(DataEntry!E17>0,DataEntry!C17,"") -> 2000-10-01 | C24: =YoudenCalculations!J18 -> 2 | D24: =IF(DataEntry!E17>0,DataEntry!E17,"") -> 9 | E24: =IF(DataEntry!E17>0,ABS(C24-YoudenCalculations!$J$1)/SQRT(D24^2+$J$6^2),"") -> 0.05139561688 | F24: =IF(DataEntry!E17>0,D24/$B$14,"") -> 0.3913043478 | G24: =IF(DataEntry!E17>0,IF(ABS(C24-YoudenCalculations!$J$1)>$S$2,"yes",""),"") ->  | H24: =IF(DataEntry!H17>0,DataEntry!F17,"") -> 2000-01-15 | I24: =YoudenCalculations!K18 -> -3 | J24: =IF(DataEntry!H17>0,DataEntry!H17,"") -> 9 | K24: =IF(DataEntry!H17>0,ABS(I24-YoudenCalculations!$K$1)/SQRT(J24^2+$J$11^2),"") -> 0 | L24: =IF(DataEntry!H17>0,J24/$B$14,"") -> 0.3913043478 | M24: =IF(DataEntry!H17>0,IF(ABS(I24-YoudenCalculations!$K$1)>$T$2,"yes",""),"") ->  | S24: =IF(DataEntry!E17>0,IF(G24="yes","",C24),"") -> 2 | T24: =IF(DataEntry!E17>0,IF(M24="yes","",I24),"") -> -3 | U24: 8 | V24: =IF(DataEntry!E17>0,DataEntry!B17,#N/A) -> H | W24: =IF(DataEntry!E17>0,DataEntry!C17,#N/A) -> 2000-10-01 | X24: =IF(DataEntry!E17>0,DataEntry!D17,#N/A) -> 2 | Y24: =IF(DataEntry!E17>0,DataEntry!E17,#N/A) -> 9 | Z24: =IF(DataEntry!E17>0,$J$5,#N/A) -> 1.5 | AA24: 5.19362385 | AB24: -2.19362385 | AE24: =IF(DataEntry!H17>0,DataEntry!B17,#N/A) -> H | AF24: =IF(DataEntry!H17>0,DataEntry!F17,#N/A) -> 2000-01-15 | AG24: =IF(DataEntry!H17>0,DataEntry!G17,#N/A) -> -3 | AH24: =IF(DataEntry!H17>0,DataEntry!H17,#N/A) -> 9 | AI24: =IF(DataEntry!H17>0,$J$10,#N/A) -> -3 | AJ24: 3.817344826 | AK24: -9.817344826 | AN24: =IF(DataEntry!E17>0,A24,"") -> H | AO24: =IF(DataEntry!E17>0,E24,#N/A) -> 0.05139561688 | AP24: =IF(DataEntry!H17>0,K24,#N/A) -> 0 | AQ24: =IF(DataEntry!H17>0,1,#N/A) -> 1 | AS24: =IF(DataEntry!E17>0,A24,"") -> H | AT24: =IF(DataEntry!E17>0,F24,#N/A) -> 0.3913043478 | AU24: =IF(DataEntry!H17>0,L24,#N/A) -> 0.3913043478 | AV24: =IF(DataEntry!H17>0,3,#N/A) -> 3
A25: =YoudenCalculations!I19 ->  | B25: =IF(DataEntry!E18>0,DataEntry!C18,"") ->  | C25: =YoudenCalculations!J19 ->  | D25: =IF(DataEntry!E18>0,DataEntry!E18,"") ->  | E25: =IF(DataEntry!E18>0,ABS(C25-YoudenCalculations!$J$1)/SQRT(D25^2+$J$6^2),"") ->  | F25: =IF(DataEntry!E18>0,D25/$B$14,"") ->  | G25: =IF(DataEntry!E18>0,IF(ABS(C25-YoudenCalculations!$J$1)>$S$2,"yes",""),"") ->  | H25: =IF(DataEntry!H18>0,DataEntry!F18,"") ->  | I25: =YoudenCalculations!K19 ->  | J25: =IF(DataEntry!H18>0,DataEntry!H18,"") ->  | K25: =IF(DataEntry!H18>0,ABS(I25-YoudenCalculations!$K$1)/SQRT(J25^2+$J$11^2),"") ->  | L25: =IF(DataEntry!H18>0,J25/$B$14,"") ->  | M25: =IF(DataEntry!H18>0,IF(ABS(I25-YoudenCalculations!$K$1)>$T$2,"yes",""),"") ->  | S25: =IF(DataEntry!E18>0,IF(G25="yes","",C25),"") ->  | T25: =IF(DataEntry!E18>0,IF(M25="yes","",I25),"") ->  | U25: 9 | V25: =IF(DataEntry!E18>0,DataEntry!B18,#N/A) ->  | W25: =IF(DataEntry!E18>0,DataEntry!C18,#N/A) ->  | X25: =IF(DataEntry!E18>0,DataEntry!D18,#N/A) ->  | Y25: =IF(DataEntry!E18>0,DataEntry!E18,#N/A) ->  | Z25: =IF(DataEntry!E18>0,$J$5,#N/A) ->  | AE25: =IF(DataEntry!H18>0,DataEntry!B18,#N/A) ->  | AF25: =IF(DataEntry!H18>0,DataEntry!F18,#N/A) ->  | AG25: =IF(DataEntry!H18>0,DataEntry!G18,#N/A) ->  | AH25: =IF(DataEntry!H18>0,DataEntry!H18,#N/A) ->  | AI25: =IF(DataEntry!H18>0,$J$10,#N/A) ->  | AN25: =IF(DataEntry!E18>0,A25,"") ->  | AO25: =IF(DataEntry!E18>0,E25,#N/A) ->  | AP25: =IF(DataEntry!H18>0,K25,#N/A) ->  | AQ25: =IF(DataEntry!H18>0,1,#N/A) ->  | AS25: =IF(DataEntry!E18>0,A25,"") ->  | AT25: =IF(DataEntry!E18>0,F25,#N/A) ->  | AU25: =IF(DataEntry!H18>0,L25,#N/A) ->  | AV25: =IF(DataEntry!H18>0,3,#N/A) -> 
A26: =YoudenCalculations!I20 ->  | B26: =IF(DataEntry!E19>0,DataEntry!C19,"") ->  | C26: =YoudenCalculations!J20 ->  | D26: =IF(DataEntry!E19>0,DataEntry!E19,"") ->  | E26: =IF(DataEntry!E19>0,ABS(C26-YoudenCalculations!$J$1)/SQRT(D26^2+$J$6^2),"") ->  | F26: =IF(DataEntry!E19>0,D26/$B$14,"") ->  | G26: =IF(DataEntry!E19>0,IF(ABS(C26-YoudenCalculations!$J$1)>$S$2,"yes",""),"") ->  | H26: =IF(DataEntry!H19>0,DataEntry!F19,"") ->  | I26: =YoudenCalculations!K20 ->  | J26: =IF(DataEntry!H19>0,DataEntry!H19,"") ->  | K26: =IF(DataEntry!H19>0,ABS(I26-YoudenCalculations!$K$1)/SQRT(J26^2+$J$11^2),"") ->  | L26: =IF(DataEntry!H19>0,J26/$B$14,"") ->  | M26: =IF(DataEntry!H19>0,IF(ABS(I26-YoudenCalculations!$K$1)>$T$2,"yes",""),"") ->  | S26: =IF(DataEntry!E19>0,IF(G26="yes","",C26),"") ->  | T26: =IF(DataEntry!E19>0,IF(M26="yes","",I26),"") ->  | U26: 10 | V26: =IF(DataEntry!E19>0,DataEntry!B19,#N/A) ->  | W26: =IF(DataEntry!E19>0,DataEntry!C19,#N/A) ->  | X26: =IF(DataEntry!E19>0,DataEntry!D19,#N/A) ->  | Y26: =IF(DataEntry!E19>0,DataEntry!E19,#N/A) ->  | Z26: =IF(DataEntry!E19>0,$J$5,#N/A) ->  | AE26: =IF(DataEntry!H19>0,DataEntry!B19,#N/A) ->  | AF26: =IF(DataEntry!H19>0,DataEntry!F19,#N/A) ->  | AG26: =IF(DataEntry!H19>0,DataEntry!G19,#N/A) ->  | AH26: =IF(DataEntry!H19>0,DataEntry!H19,#N/A) ->  | AI26: =IF(DataEntry!H19>0,$J$10,#N/A) ->  | AN26: =IF(DataEntry!E19>0,A26,"") ->  | AO26: =IF(DataEntry!E19>0,E26,#N/A) ->  | AP26: =IF(DataEntry!H19>0,K26,#N/A) ->  | AQ26: =IF(DataEntry!H19>0,1,#N/A) ->  | AS26: =IF(DataEntry!E19>0,A26,"") ->  | AT26: =IF(DataEntry!E19>0,F26,#N/A) ->  | AU26: =IF(DataEntry!H19>0,L26,#N/A) ->  | AV26: =IF(DataEntry!H19>0,3,#N/A) -> 
A27: =YoudenCalculations!I21 ->  | B27: =IF(DataEntry!E20>0,DataEntry!C20,"") ->  | C27: =YoudenCalculations!J21 ->  | D27: =IF(DataEntry!E20>0,DataEntry!E20,"") ->  | E27: =IF(DataEntry!E20>0,ABS(C27-YoudenCalculations!$J$1)/SQRT(D27^2+$J$6^2),"") ->  | F27: =IF(DataEntry!E20>0,D27/$B$14,"") ->  | G27: =IF(DataEntry!E20>0,IF(ABS(C27-YoudenCalculations!$J$1)>$S$2,"yes",""),"") ->  | H27: =IF(DataEntry!H20>0,DataEntry!F20,"") ->  | I27: =YoudenCalculations!K21 ->  | J27: =IF(DataEntry!H20>0,DataEntry!H20,"") ->  | K27: =IF(DataEntry!H20>0,ABS(I27-YoudenCalculations!$K$1)/SQRT(J27^2+$J$11^2),"") ->  | L27: =IF(DataEntry!H20>0,J27/$B$14,"") ->  | M27: =IF(DataEntry!H20>0,IF(ABS(I27-YoudenCalculations!$K$1)>$T$2,"yes",""),"") ->  | S27: =IF(DataEntry!E20>0,IF(G27="yes","",C27),"") ->  | T27: =IF(DataEntry!E20>0,IF(M27="yes","",I27),"") ->  | U27: 11 | V27: =IF(DataEntry!E20>0,DataEntry!B20,#N/A) ->  | W27: =IF(DataEntry!E20>0,DataEntry!C20,#N/A) ->  | X27: =IF(DataEntry!E20>0,DataEntry!D20,#N/A) ->  | Y27: =IF(DataEntry!E20>0,DataEntry!E20,#N/A) ->  | Z27: =IF(DataEntry!E20>0,$J$5,#N/A) ->  | AE27: =IF(DataEntry!H20>0,DataEntry!B20,#N/A) ->  | AF27: =IF(DataEntry!H20>0,DataEntry!F20,#N/A) ->  | AG27: =IF(DataEntry!H20>0,DataEntry!G20,#N/A) ->  | AH27: =IF(DataEntry!H20>0,DataEntry!H20,#N/A) ->  | AI27: =IF(DataEntry!H20>0,$J$10,#N/A) ->  | AN27: =IF(DataEntry!E20>0,A27,"") ->  | AO27: =IF(DataEntry!E20>0,E27,#N/A) ->  | AP27: =IF(DataEntry!H20>0,K27,#N/A) ->  | AQ27: =IF(DataEntry!H20>0,1,#N/A) ->  | AS27: =IF(DataEntry!E20>0,A27,"") ->  | AT27: =IF(DataEntry!E20>0,F27,#N/A) ->  | AU27: =IF(DataEntry!H20>0,L27,#N/A) ->  | AV27: =IF(DataEntry!H20>0,3,#N/A) -> 
A28: =YoudenCalculations!I22 ->  | B28: =IF(DataEntry!E21>0,DataEntry!C21,"") ->  | C28: =YoudenCalculations!J22 ->  | D28: =IF(DataEntry!E21>0,DataEntry!E21,"") ->  | E28: =IF(DataEntry!E21>0,ABS(C28-YoudenCalculations!$J$1)/SQRT(D28^2+$J$6^2),"") ->  | F28: =IF(DataEntry!E21>0,D28/$B$14,"") ->  | G28: =IF(DataEntry!E21>0,IF(ABS(C28-YoudenCalculations!$J$1)>$S$2,"yes",""),"") ->  | H28: =IF(DataEntry!H21>0,DataEntry!F21,"") ->  | I28: =YoudenCalculations!K22 ->  | J28: =IF(DataEntry!H21>0,DataEntry!H21,"") ->  | K28: =IF(DataEntry!H21>0,ABS(I28-YoudenCalculations!$K$1)/SQRT(J28^2+$J$11^2),"") ->  | L28: =IF(DataEntry!H21>0,J28/$B$14,"") ->  | M28: =IF(DataEntry!H21>0,IF(ABS(I28-YoudenCalculations!$K$1)>$T$2,"yes",""),"") ->  | S28: =IF(DataEntry!E21>0,IF(G28="yes","",C28),"") ->  | T28: =IF(DataEntry!E21>0,IF(M28="yes","",I28),"") ->  | U28: 12 | V28: =IF(DataEntry!E21>0,DataEntry!B21,#N/A) ->  | W28: =IF(DataEntry!E21>0,DataEntry!C21,#N/A) ->  | X28: =IF(DataEntry!E21>0,DataEntry!D21,#N/A) ->  | Y28: =IF(DataEntry!E21>0,DataEntry!E21,#N/A) ->  | Z28: =IF(DataEntry!E21>0,$J$5,#N/A) ->  | AE28: =IF(DataEntry!H21>0,DataEntry!B21,#N/A) ->  | AF28: =IF(DataEntry!H21>0,DataEntry!F21,#N/A) ->  | AG28: =IF(DataEntry!H21>0,DataEntry!G21,#N/A) ->  | AH28: =IF(DataEntry!H21>0,DataEntry!H21,#N/A) ->  | AI28: =IF(DataEntry!H21>0,$J$10,#N/A) ->  | AN28: =IF(DataEntry!E21>0,A28,"") ->  | AO28: =IF(DataEntry!E21>0,E28,#N/A) ->  | AP28: =IF(DataEntry!H21>0,K28,#N/A) ->  | AQ28: =IF(DataEntry!H21>0,1,#N/A) ->  | AS28: =IF(DataEntry!E21>0,A28,"") ->  | AT28: =IF(DataEntry!E21>0,F28,#N/A) ->  | AU28: =IF(DataEntry!H21>0,L28,#N/A) ->  | AV28: =IF(DataEntry!H21>0,3,#N/A) -> 
A29: =YoudenCalculations!I23 ->  | B29: =IF(DataEntry!E22>0,DataEntry!C22,"") ->  | C29: =YoudenCalculations!J23 ->  | D29: =IF(DataEntry!E22>0,DataEntry!E22,"") ->  | E29: =IF(DataEntry!E22>0,ABS(C29-YoudenCalculations!$J$1)/SQRT(D29^2+$J$6^2),"") ->  | F29: =IF(DataEntry!E22>0,D29/$B$14,"") ->  | G29: =IF(DataEntry!E22>0,IF(ABS(C29-YoudenCalculations!$J$1)>$S$2,"yes",""),"") ->  | H29: =IF(DataEntry!H22>0,DataEntry!F22,"") ->  | I29: =YoudenCalculations!K23 ->  | J29: =IF(DataEntry!H22>0,DataEntry!H22,"") ->  | K29: =IF(DataEntry!H22>0,ABS(I29-YoudenCalculations!$K$1)/SQRT(J29^2+$J$11^2),"") ->  | L29: =IF(DataEntry!H22>0,J29/$B$14,"") ->  | M29: =IF(DataEntry!H22>0,IF(ABS(I29-YoudenCalculations!$K$1)>$T$2,"yes",""),"") ->  | S29: =IF(DataEntry!E22>0,IF(G29="yes","",C29),"") ->  | T29: =IF(DataEntry!E22>0,IF(M29="yes","",I29),"") ->  | U29: 13 | V29: =IF(DataEntry!E22>0,DataEntry!B22,#N/A) ->  | W29: =IF(DataEntry!E22>0,DataEntry!C22,#N/A) ->  | X29: =IF(DataEntry!E22>0,DataEntry!D22,#N/A) ->  | Y29: =IF(DataEntry!E22>0,DataEntry!E22,#N/A) ->  | Z29: =IF(DataEntry!E22>0,$J$5,#N/A) ->  | AE29: =IF(DataEntry!H22>0,DataEntry!B22,#N/A) ->  | AF29: =IF(DataEntry!H22>0,DataEntry!F22,#N/A) ->  | AG29: =IF(DataEntry!H22>0,DataEntry!G22,#N/A) ->  | AH29: =IF(DataEntry!H22>0,DataEntry!H22,#N/A) ->  | AI29: =IF(DataEntry!H22>0,$J$10,#N/A) ->  | AN29: =IF(DataEntry!E22>0,A29,"") ->  | AO29: =IF(DataEntry!E22>0,E29,#N/A) ->  | AP29: =IF(DataEntry!H22>0,K29,#N/A) ->  | AQ29: =IF(DataEntry!H22>0,1,#N/A) ->  | AS29: =IF(DataEntry!E22>0,A29,"") ->  | AT29: =IF(DataEntry!E22>0,F29,#N/A) ->  | AU29: =IF(DataEntry!H22>0,L29,#N/A) ->  | AV29: =IF(DataEntry!H22>0,3,#N/A) -> 
A30: =YoudenCalculations!I24 ->  | B30: =IF(DataEntry!E23>0,DataEntry!C23,"") ->  | C30: =YoudenCalculations!J24 ->  | D30: =IF(DataEntry!E23>0,DataEntry!E23,"") ->  | E30: =IF(DataEntry!E23>0,ABS(C30-YoudenCalculations!$J$1)/SQRT(D30^2+$J$6^2),"") ->  | F30: =IF(DataEntry!E23>0,D30/$B$14,"") ->  | G30: =IF(DataEntry!E23>0,IF(ABS(C30-YoudenCalculations!$J$1)>$S$2,"yes",""),"") ->  | H30: =IF(DataEntry!H23>0,DataEntry!F23,"") ->  | I30: =YoudenCalculations!K24 ->  | J30: =IF(DataEntry!H23>0,DataEntry!H23,"") ->  | K30: =IF(DataEntry!H23>0,ABS(I30-YoudenCalculations!$K$1)/SQRT(J30^2+$J$11^2),"") ->  | L30: =IF(DataEntry!H23>0,J30/$B$14,"") ->  | M30: =IF(DataEntry!H23>0,IF(ABS(I30-YoudenCalculations!$K$1)>$T$2,"yes",""),"") ->  | S30: =IF(DataEntry!E23>0,IF(G30="yes","",C30),"") ->  | T30: =IF(DataEntry!E23>0,IF(M30="yes","",I30),"") ->  | U30: 14 | V30: =IF(DataEntry!E23>0,DataEntry!B23,#N/A) ->  | W30: =IF(DataEntry!E23>0,DataEntry!C23,#N/A) ->  | X30: =IF(DataEntry!E23>0,DataEntry!D23,#N/A) ->  | Y30: =IF(DataEntry!E23>0,DataEntry!E23,#N/A) ->  | Z30: =IF(DataEntry!E23>0,$J$5,#N/A) ->  | AE30: =IF(DataEntry!H23>0,DataEntry!B23,#N/A) ->  | AF30: =IF(DataEntry!H23>0,DataEntry!F23,#N/A) ->  | AG30: =IF(DataEntry!H23>0,DataEntry!G23,#N/A) ->  | AH30: =IF(DataEntry!H23>0,DataEntry!H23,#N/A) ->  | AI30: =IF(DataEntry!H23>0,$J$10,#N/A) ->  | AN30: =IF(DataEntry!E23>0,A30,"") ->  | AO30: =IF(DataEntry!E23>0,E30,#N/A) ->  | AP30: =IF(DataEntry!H23>0,K30,#N/A) ->  | AQ30: =IF(DataEntry!H23>0,1,#N/A) ->  | AS30: =IF(DataEntry!E23>0,A30,"") ->  | AT30: =IF(DataEntry!E23>0,F30,#N/A) ->  | AU30: =IF(DataEntry!H23>0,L30,#N/A) ->  | AV30: =IF(DataEntry!H23>0,3,#N/A) -> 
A31: =YoudenCalculations!I25 ->  | B31: =IF(DataEntry!E24>0,DataEntry!C24,"") ->  | C31: =YoudenCalculations!J25 ->  | D31: =IF(DataEntry!E24>0,DataEntry!E24,"") ->  | E31: =IF(DataEntry!E24>0,ABS(C31-YoudenCalculations!$J$1)/SQRT(D31^2+$J$6^2),"") ->  | F31: =IF(DataEntry!E24>0,D31/$B$14,"") ->  | G31: =IF(DataEntry!E24>0,IF(ABS(C31-YoudenCalculations!$J$1)>$S$2,"yes",""),"") ->  | H31: =IF(DataEntry!H24>0,DataEntry!F24,"") ->  | I31: =YoudenCalculations!K25 ->  | J31: =IF(DataEntry!H24>0,DataEntry!H24,"") ->  | K31: =IF(DataEntry!H24>0,ABS(I31-YoudenCalculations!$K$1)/SQRT(J31^2+$J$11^2),"") ->  | L31: =IF(DataEntry!H24>0,J31/$B$14,"") ->  | M31: =IF(DataEntry!H24>0,IF(ABS(I31-YoudenCalculations!$K$1)>$T$2,"yes",""),"") ->  | S31: =IF(DataEntry!E24>0,IF(G31="yes","",C31),"") ->  | T31: =IF(DataEntry!E24>0,IF(M31="yes","",I31),"") ->  | U31: 15 | V31: =IF(DataEntry!E24>0,DataEntry!B24,#N/A) ->  | W31: =IF(DataEntry!E24>0,DataEntry!C24,#N/A) ->  | X31: =IF(DataEntry!E24>0,DataEntry!D24,#N/A) ->  | Y31: =IF(DataEntry!E24>0,DataEntry!E24,#N/A) ->  | Z31: =IF(DataEntry!E24>0,$J$5,#N/A) ->  | AE31: =IF(DataEntry!H24>0,DataEntry!B24,#N/A) ->  | AF31: =IF(DataEntry!H24>0,DataEntry!F24,#N/A) ->  | AG31: =IF(DataEntry!H24>0,DataEntry!G24,#N/A) ->  | AH31: =IF(DataEntry!H24>0,DataEntry!H24,#N/A) ->  | AI31: =IF(DataEntry!H24>0,$J$10,#N/A) ->  | AN31: =IF(DataEntry!E24>0,A31,"") ->  | AO31: =IF(DataEntry!E24>0,E31,#N/A) ->  | AP31: =IF(DataEntry!H24>0,K31,#N/A) ->  | AQ31: =IF(DataEntry!H24>0,1,#N/A) ->  | AS31: =IF(DataEntry!E24>0,A31,"") ->  | AT31: =IF(DataEntry!E24>0,F31,#N/A) ->  | AU31: =IF(DataEntry!H24>0,L31,#N/A) ->  | AV31: =IF(DataEntry!H24>0,3,#N/A) -> 
A32: =YoudenCalculations!I26 ->  | B32: =IF(DataEntry!E25>0,DataEntry!C25,"") ->  | C32: =YoudenCalculations!J26 ->  | D32: =IF(DataEntry!E25>0,DataEntry!E25,"") ->  | E32: =IF(DataEntry!E25>0,ABS(C32-YoudenCalculations!$J$1)/SQRT(D32^2+$J$6^2),"") ->  | F32: =IF(DataEntry!E25>0,D32/$B$14,"") ->  | G32: =IF(DataEntry!E25>0,IF(ABS(C32-YoudenCalculations!$J$1)>$S$2,"yes",""),"") ->  | H32: =IF(DataEntry!H25>0,DataEntry!F25,"") ->  | I32: =YoudenCalculations!K26 ->  | J32: =IF(DataEntry!H25>0,DataEntry!H25,"") ->  | K32: =IF(DataEntry!H25>0,ABS(I32-YoudenCalculations!$K$1)/SQRT(J32^2+$J$11^2),"") ->  | L32: =IF(DataEntry!H25>0,J32/$B$14,"") ->  | M32: =IF(DataEntry!H25>0,IF(ABS(I32-YoudenCalculations!$K$1)>$T$2,"yes",""),"") ->  | S32: =IF(DataEntry!E25>0,IF(G32="yes","",C32),"") ->  | T32: =IF(DataEntry!E25>0,IF(M32="yes","",I32),"") ->  | U32: 16 | V32: =IF(DataEntry!E25>0,DataEntry!B25,#N/A) ->  | W32: =IF(DataEntry!E25>0,DataEntry!C25,#N/A) ->  | X32: =IF(DataEntry!E25>0,DataEntry!D25,#N/A) ->  | Y32: =IF(DataEntry!E25>0,DataEntry!E25,#N/A) ->  | Z32: =IF(DataEntry!E25>0,$J$5,#N/A) ->  | AE32: =IF(DataEntry!H25>0,DataEntry!B25,#N/A) ->  | AF32: =IF(DataEntry!H25>0,DataEntry!F25,#N/A) ->  | AG32: =IF(DataEntry!H25>0,DataEntry!G25,#N/A) ->  | AH32: =IF(DataEntry!H25>0,DataEntry!H25,#N/A) ->  | AI32: =IF(DataEntry!H25>0,$J$10,#N/A) ->  | AN32: =IF(DataEntry!E25>0,A32,"") ->  | AO32: =IF(DataEntry!E25>0,E32,#N/A) ->  | AP32: =IF(DataEntry!H25>0,K32,#N/A) ->  | AQ32: =IF(DataEntry!H25>0,1,#N/A) ->  | AS32: =IF(DataEntry!E25>0,A32,"") ->  | AT32: =IF(DataEntry!E25>0,F32,#N/A) ->  | AU32: =IF(DataEntry!H25>0,L32,#N/A) ->  | AV32: =IF(DataEntry!H25>0,3,#N/A) -> 
A33: =YoudenCalculations!I27 ->  | B33: =IF(DataEntry!E26>0,DataEntry!C26,"") ->  | C33: =YoudenCalculations!J27 ->  | D33: =IF(DataEntry!E26>0,DataEntry!E26,"") ->  | E33: =IF(DataEntry!E26>0,ABS(C33-YoudenCalculations!$J$1)/SQRT(D33^2+$J$6^2),"") ->  | F33: =IF(DataEntry!E26>0,D33/$B$14,"") ->  | G33: =IF(DataEntry!E26>0,IF(ABS(C33-YoudenCalculations!$J$1)>$S$2,"yes",""),"") ->  | H33: =IF(DataEntry!H26>0,DataEntry!F26,"") ->  | I33: =YoudenCalculations!K27 ->  | J33: =IF(DataEntry!H26>0,DataEntry!H26,"") ->  | K33: =IF(DataEntry!H26>0,ABS(I33-YoudenCalculations!$K$1)/SQRT(J33^2+$J$11^2),"") ->  | L33: =IF(DataEntry!H26>0,J33/$B$14,"") ->  | M33: =IF(DataEntry!H26>0,IF(ABS(I33-YoudenCalculations!$K$1)>$T$2,"yes",""),"") ->  | S33: =IF(DataEntry!E26>0,IF(G33="yes","",C33),"") ->  | T33: =IF(DataEntry!E26>0,IF(M33="yes","",I33),"") ->  | U33: 17 | V33: =IF(DataEntry!E26>0,DataEntry!B26,#N/A) ->  | W33: =IF(DataEntry!E26>0,DataEntry!C26,#N/A) ->  | X33: =IF(DataEntry!E26>0,DataEntry!D26,#N/A) ->  | Y33: =IF(DataEntry!E26>0,DataEntry!E26,#N/A) ->  | Z33: =IF(DataEntry!E26>0,$J$5,#N/A) ->  | AE33: =IF(DataEntry!H26>0,DataEntry!B26,#N/A) ->  | AF33: =IF(DataEntry!H26>0,DataEntry!F26,#N/A) ->  | AG33: =IF(DataEntry!H26>0,DataEntry!G26,#N/A) ->  | AH33: =IF(DataEntry!H26>0,DataEntry!H26,#N/A) ->  | AI33: =IF(DataEntry!H26>0,$J$10,#N/A) ->  | AN33: =IF(DataEntry!E26>0,A33,"") ->  | AO33: =IF(DataEntry!E26>0,E33,#N/A) ->  | AP33: =IF(DataEntry!H26>0,K33,#N/A) ->  | AQ33: =IF(DataEntry!H26>0,1,#N/A) ->  | AS33: =IF(DataEntry!E26>0,A33,"") ->  | AT33: =IF(DataEntry!E26>0,F33,#N/A) ->  | AU33: =IF(DataEntry!H26>0,L33,#N/A) ->  | AV33: =IF(DataEntry!H26>0,3,#N/A) -> 
A34: =YoudenCalculations!I28 ->  | B34: =IF(DataEntry!E27>0,DataEntry!C27,"") ->  | C34: =YoudenCalculations!J28 ->  | D34: =IF(DataEntry!E27>0,DataEntry!E27,"") ->  | E34: =IF(DataEntry!E27>0,ABS(C34-YoudenCalculations!$J$1)/SQRT(D34^2+$J$6^2),"") ->  | F34: =IF(DataEntry!E27>0,D34/$B$14,"") ->  | G34: =IF(DataEntry!E27>0,IF(ABS(C34-YoudenCalculations!$J$1)>$S$2,"yes",""),"") ->  | H34: =IF(DataEntry!H27>0,DataEntry!F27,"") ->  | I34: =YoudenCalculations!K28 ->  | J34: =IF(DataEntry!H27>0,DataEntry!H27,"") ->  | K34: =IF(DataEntry!H27>0,ABS(I34-YoudenCalculations!$K$1)/SQRT(J34^2+$J$11^2),"") ->  | L34: =IF(DataEntry!H27>0,J34/$B$14,"") ->  | M34: =IF(DataEntry!H27>0,IF(ABS(I34-YoudenCalculations!$K$1)>$T$2,"yes",""),"") ->  | S34: =IF(DataEntry!E27>0,IF(G34="yes","",C34),"") ->  | T34: =IF(DataEntry!E27>0,IF(M34="yes","",I34),"") ->  | U34: 18 | V34: =IF(DataEntry!E27>0,DataEntry!B27,#N/A) ->  | W34: =IF(DataEntry!E27>0,DataEntry!C27,#N/A) ->  | X34: =IF(DataEntry!E27>0,DataEntry!D27,#N/A) ->  | Y34: =IF(DataEntry!E27>0,DataEntry!E27,#N/A) ->  | Z34: =IF(DataEntry!E27>0,$J$5,#N/A) ->  | AE34: =IF(DataEntry!H27>0,DataEntry!B27,#N/A) ->  | AF34: =IF(DataEntry!H27>0,DataEntry!F27,#N/A) ->  | AG34: =IF(DataEntry!H27>0,DataEntry!G27,#N/A) ->  | AH34: =IF(DataEntry!H27>0,DataEntry!H27,#N/A) ->  | AI34: =IF(DataEntry!H27>0,$J$10,#N/A) ->  | AN34: =IF(DataEntry!E27>0,A34,"") ->  | AO34: =IF(DataEntry!E27>0,E34,#N/A) ->  | AP34: =IF(DataEntry!H27>0,K34,#N/A) ->  | AQ34: =IF(DataEntry!H27>0,1,#N/A) ->  | AS34: =IF(DataEntry!E27>0,A34,"") ->  | AT34: =IF(DataEntry!E27>0,F34,#N/A) ->  | AU34: =IF(DataEntry!H27>0,L34,#N/A) ->  | AV34: =IF(DataEntry!H27>0,3,#N/A) -> 
A35: =YoudenCalculations!I29 ->  | B35: =IF(DataEntry!E28>0,DataEntry!C28,"") ->  | C35: =YoudenCalculations!J29 ->  | D35: =IF(DataEntry!E28>0,DataEntry!E28,"") ->  | E35: =IF(DataEntry!E28>0,ABS(C35-YoudenCalculations!$J$1)/SQRT(D35^2+$J$6^2),"") ->  | F35: =IF(DataEntry!E28>0,D35/$B$14,"") ->  | G35: =IF(DataEntry!E28>0,IF(ABS(C35-YoudenCalculations!$J$1)>$S$2,"yes",""),"") ->  | H35: =IF(DataEntry!H28>0,DataEntry!F28,"") ->  | I35: =YoudenCalculations!K29 ->  | J35: =IF(DataEntry!H28>0,DataEntry!H28,"") ->  | K35: =IF(DataEntry!H28>0,ABS(I35-YoudenCalculations!$K$1)/SQRT(J35^2+$J$11^2),"") ->  | L35: =IF(DataEntry!H28>0,J35/$B$14,"") ->  | M35: =IF(DataEntry!H28>0,IF(ABS(I35-YoudenCalculations!$K$1)>$T$2,"yes",""),"") ->  | S35: =IF(DataEntry!E28>0,IF(G35="yes","",C35),"") ->  | T35: =IF(DataEntry!E28>0,IF(M35="yes","",I35),"") ->  | U35: 19 | V35: =IF(DataEntry!E28>0,DataEntry!B28,#N/A) ->  | W35: =IF(DataEntry!E28>0,DataEntry!C28,#N/A) ->  | X35: =IF(DataEntry!E28>0,DataEntry!D28,#N/A) ->  | Y35: =IF(DataEntry!E28>0,DataEntry!E28,#N/A) ->  | Z35: =IF(DataEntry!E28>0,$J$5,#N/A) ->  | AE35: =IF(DataEntry!H28>0,DataEntry!B28,#N/A) ->  | AF35: =IF(DataEntry!H28>0,DataEntry!F28,#N/A) ->  | AG35: =IF(DataEntry!H28>0,DataEntry!G28,#N/A) ->  | AH35: =IF(DataEntry!H28>0,DataEntry!H28,#N/A) ->  | AI35: =IF(DataEntry!H28>0,$J$10,#N/A) ->  | AN35: =IF(DataEntry!E28>0,A35,"") ->  | AO35: =IF(DataEntry!E28>0,E35,#N/A) ->  | AP35: =IF(DataEntry!H28>0,K35,#N/A) ->  | AQ35: =IF(DataEntry!H28>0,1,#N/A) ->  | AS35: =IF(DataEntry!E28>0,A35,"") ->  | AT35: =IF(DataEntry!E28>0,F35,#N/A) ->  | AU35: =IF(DataEntry!H28>0,L35,#N/A) ->  | AV35: =IF(DataEntry!H28>0,3,#N/A) -> 
A36: =YoudenCalculations!I30 ->  | B36: =IF(DataEntry!E29>0,DataEntry!C29,"") ->  | C36: =YoudenCalculations!J30 ->  | D36: =IF(DataEntry!E29>0,DataEntry!E29,"") ->  | E36: =IF(DataEntry!E29>0,ABS(C36-YoudenCalculations!$J$1)/SQRT(D36^2+$J$6^2),"") ->  | F36: =IF(DataEntry!E29>0,D36/$B$14,"") ->  | G36: =IF(DataEntry!E29>0,IF(ABS(C36-YoudenCalculations!$J$1)>$S$2,"yes",""),"") ->  | H36: =IF(DataEntry!H29>0,DataEntry!F29,"") ->  | I36: =YoudenCalculations!K30 ->  | J36: =IF(DataEntry!H29>0,DataEntry!H29,"") ->  | K36: =IF(DataEntry!H29>0,ABS(I36-YoudenCalculations!$K$1)/SQRT(J36^2+$J$11^2),"") ->  | L36: =IF(DataEntry!H29>0,J36/$B$14,"") ->  | M36: =IF(DataEntry!H29>0,IF(ABS(I36-YoudenCalculations!$K$1)>$T$2,"yes",""),"") ->  | S36: =IF(DataEntry!E29>0,IF(G36="yes","",C36),"") ->  | T36: =IF(DataEntry!E29>0,IF(M36="yes","",I36),"") ->  | U36: 20 | V36: =IF(DataEntry!E29>0,DataEntry!B29,#N/A) ->  | W36: =IF(DataEntry!E29>0,DataEntry!C29,#N/A) ->  | X36: =IF(DataEntry!E29>0,DataEntry!D29,#N/A) ->  | Y36: =IF(DataEntry!E29>0,DataEntry!E29,#N/A) ->  | Z36: =IF(DataEntry!E29>0,$J$5,#N/A) ->  | AE36: =IF(DataEntry!H29>0,DataEntry!B29,#N/A) ->  | AF36: =IF(DataEntry!H29>0,DataEntry!F29,#N/A) ->  | AG36: =IF(DataEntry!H29>0,DataEntry!G29,#N/A) ->  | AH36: =IF(DataEntry!H29>0,DataEntry!H29,#N/A) ->  | AI36: =IF(DataEntry!H29>0,$J$10,#N/A) ->  | AN36: =IF(DataEntry!E29>0,A36,"") ->  | AO36: =IF(DataEntry!E29>0,E36,#N/A) ->  | AP36: =IF(DataEntry!H29>0,K36,#N/A) ->  | AQ36: =IF(DataEntry!H29>0,1,#N/A) ->  | AS36: =IF(DataEntry!E29>0,A36,"") ->  | AT36: =IF(DataEntry!E29>0,F36,#N/A) ->  | AU36: =IF(DataEntry!H29>0,L36,#N/A) ->  | AV36: =IF(DataEntry!H29>0,3,#N/A) -> 
A37: =YoudenCalculations!I31 ->  | B37: =IF(DataEntry!E30>0,DataEntry!C30,"") ->  | C37: =YoudenCalculations!J31 ->  | D37: =IF(DataEntry!E30>0,DataEntry!E30,"") ->  | E37: =IF(DataEntry!E30>0,ABS(C37-YoudenCalculations!$J$1)/SQRT(D37^2+$J$6^2),"") ->  | F37: =IF(DataEntry!E30>0,D37/$B$14,"") ->  | G37: =IF(DataEntry!E30>0,IF(ABS(C37-YoudenCalculations!$J$1)>$S$2,"yes",""),"") ->  | H37: =IF(DataEntry!H30>0,DataEntry!F30,"") ->  | I37: =YoudenCalculations!K31 ->  | J37: =IF(DataEntry!H30>0,DataEntry!H30,"") ->  | K37: =IF(DataEntry!H30>0,ABS(I37-YoudenCalculations!$K$1)/SQRT(J37^2+$J$11^2),"") ->  | L37: =IF(DataEntry!H30>0,J37/$B$14,"") ->  | M37: =IF(DataEntry!H30>0,IF(ABS(I37-YoudenCalculations!$K$1)>$T$2,"yes",""),"") ->  | S37: =IF(DataEntry!E30>0,IF(G37="yes","",C37),"") ->  | T37: =IF(DataEntry!E30>0,IF(M37="yes","",I37),"") ->  | U37: 21 | V37: =IF(DataEntry!E30>0,DataEntry!B30,#N/A) ->  | W37: =IF(DataEntry!E30>0,DataEntry!C30,#N/A) ->  | X37: =IF(DataEntry!E30>0,DataEntry!D30,#N/A) ->  | Y37: =IF(DataEntry!E30>0,DataEntry!E30,#N/A) ->  | Z37: =IF(DataEntry!E30>0,$J$5,#N/A) ->  | AE37: =IF(DataEntry!H30>0,DataEntry!B30,#N/A) ->  | AF37: =IF(DataEntry!H30>0,DataEntry!F30,#N/A) ->  | AG37: =IF(DataEntry!H30>0,DataEntry!G30,#N/A) ->  | AH37: =IF(DataEntry!H30>0,DataEntry!H30,#N/A) ->  | AI37: =IF(DataEntry!H30>0,$J$10,#N/A) ->  | AN37: =IF(DataEntry!E30>0,A37,"") ->  | AO37: =IF(DataEntry!E30>0,E37,#N/A) ->  | AP37: =IF(DataEntry!H30>0,K37,#N/A) ->  | AQ37: =IF(DataEntry!H30>0,1,#N/A) ->  | AS37: =IF(DataEntry!E30>0,A37,"") ->  | AT37: =IF(DataEntry!E30>0,F37,#N/A) ->  | AU37: =IF(DataEntry!H30>0,L37,#N/A) ->  | AV37: =IF(DataEntry!H30>0,3,#N/A) -> 
A38: =YoudenCalculations!I32 ->  | B38: =IF(DataEntry!E31>0,DataEntry!C31,"") ->  | C38: =YoudenCalculations!J32 ->  | D38: =IF(DataEntry!E31>0,DataEntry!E31,"") ->  | E38: =IF(DataEntry!E31>0,ABS(C38-YoudenCalculations!$J$1)/SQRT(D38^2+$J$6^2),"") ->  | F38: =IF(DataEntry!E31>0,D38/$B$14,"") ->  | G38: =IF(DataEntry!E31>0,IF(ABS(C38-YoudenCalculations!$J$1)>$S$2,"yes",""),"") ->  | H38: =IF(DataEntry!H31>0,DataEntry!F31,"") ->  | I38: =YoudenCalculations!K32 ->  | J38: =IF(DataEntry!H31>0,DataEntry!H31,"") ->  | K38: =IF(DataEntry!H31>0,ABS(I38-YoudenCalculations!$K$1)/SQRT(J38^2+$J$11^2),"") ->  | L38: =IF(DataEntry!H31>0,J38/$B$14,"") ->  | M38: =IF(DataEntry!H31>0,IF(ABS(I38-YoudenCalculations!$K$1)>$T$2,"yes",""),"") ->  | S38: =IF(DataEntry!E31>0,IF(G38="yes","",C38),"") ->  | T38: =IF(DataEntry!E31>0,IF(M38="yes","",I38),"") ->  | U38: 22 | V38: =IF(DataEntry!E31>0,DataEntry!B31,#N/A) ->  | W38: =IF(DataEntry!E31>0,DataEntry!C31,#N/A) ->  | X38: =IF(DataEntry!E31>0,DataEntry!D31,#N/A) ->  | Y38: =IF(DataEntry!E31>0,DataEntry!E31,#N/A) ->  | Z38: =IF(DataEntry!E31>0,$J$5,#N/A) ->  | AE38: =IF(DataEntry!H31>0,DataEntry!B31,#N/A) ->  | AF38: =IF(DataEntry!H31>0,DataEntry!F31,#N/A) ->  | AG38: =IF(DataEntry!H31>0,DataEntry!G31,#N/A) ->  | AH38: =IF(DataEntry!H31>0,DataEntry!H31,#N/A) ->  | AI38: =IF(DataEntry!H31>0,$J$10,#N/A) ->  | AN38: =IF(DataEntry!E31>0,A38,"") ->  | AO38: =IF(DataEntry!E31>0,E38,#N/A) ->  | AP38: =IF(DataEntry!H31>0,K38,#N/A) ->  | AQ38: =IF(DataEntry!H31>0,1,#N/A) ->  | AS38: =IF(DataEntry!E31>0,A38,"") ->  | AT38: =IF(DataEntry!E31>0,F38,#N/A) ->  | AU38: =IF(DataEntry!H31>0,L38,#N/A) ->  | AV38: =IF(DataEntry!H31>0,3,#N/A) -> 
A39: =YoudenCalculations!I33 ->  | B39: =IF(DataEntry!E32>0,DataEntry!C32,"") ->  | C39: =YoudenCalculations!J33 ->  | D39: =IF(DataEntry!E32>0,DataEntry!E32,"") ->  | E39: =IF(DataEntry!E32>0,ABS(C39-YoudenCalculations!$J$1)/SQRT(D39^2+$J$6^2),"") ->  | F39: =IF(DataEntry!E32>0,D39/$B$14,"") ->  | G39: =IF(DataEntry!E32>0,IF(ABS(C39-YoudenCalculations!$J$1)>$S$2,"yes",""),"") ->  | H39: =IF(DataEntry!H32>0,DataEntry!F32,"") ->  | I39: =YoudenCalculations!K33 ->  | J39: =IF(DataEntry!H32>0,DataEntry!H32,"") ->  | K39: =IF(DataEntry!H32>0,ABS(I39-YoudenCalculations!$K$1)/SQRT(J39^2+$J$11^2),"") ->  | L39: =IF(DataEntry!H32>0,J39/$B$14,"") ->  | M39: =IF(DataEntry!H32>0,IF(ABS(I39-YoudenCalculations!$K$1)>$T$2,"yes",""),"") ->  | S39: =IF(DataEntry!E32>0,IF(G39="yes","",C39),"") ->  | T39: =IF(DataEntry!E32>0,IF(M39="yes","",I39),"") ->  | U39: 23 | V39: =IF(DataEntry!E32>0,DataEntry!B32,#N/A) ->  | W39: =IF(DataEntry!E32>0,DataEntry!C32,#N/A) ->  | X39: =IF(DataEntry!E32>0,DataEntry!D32,#N/A) ->  | Y39: =IF(DataEntry!E32>0,DataEntry!E32,#N/A) ->  | Z39: =IF(DataEntry!E32>0,$J$5,#N/A) ->  | AE39: =IF(DataEntry!H32>0,DataEntry!B32,#N/A) ->  | AF39: =IF(DataEntry!H32>0,DataEntry!F32,#N/A) ->  | AG39: =IF(DataEntry!H32>0,DataEntry!G32,#N/A) ->  | AH39: =IF(DataEntry!H32>0,DataEntry!H32,#N/A) ->  | AI39: =IF(DataEntry!H32>0,$J$10,#N/A) ->  | AN39: =IF(DataEntry!E32>0,A39,"") ->  | AO39: =IF(DataEntry!E32>0,E39,#N/A) ->  | AP39: =IF(DataEntry!H32>0,K39,#N/A) ->  | AQ39: =IF(DataEntry!H32>0,1,#N/A) ->  | AS39: =IF(DataEntry!E32>0,A39,"") ->  | AT39: =IF(DataEntry!E32>0,F39,#N/A) ->  | AU39: =IF(DataEntry!H32>0,L39,#N/A) ->  | AV39: =IF(DataEntry!H32>0,3,#N/A) -> 
A40: =YoudenCalculations!I34 ->  | B40: =IF(DataEntry!E33>0,DataEntry!C33,"") ->  | C40: =YoudenCalculations!J34 ->  | D40: =IF(DataEntry!E33>0,DataEntry!E33,"") ->  | E40: =IF(DataEntry!E33>0,ABS(C40-YoudenCalculations!$J$1)/SQRT(D40^2+$J$6^2),"") ->  | F40: =IF(DataEntry!E33>0,D40/$B$14,"") ->  | G40: =IF(DataEntry!E33>0,IF(ABS(C40-YoudenCalculations!$J$1)>$S$2,"yes",""),"") ->  | H40: =IF(DataEntry!H33>0,DataEntry!F33,"") ->  | I40: =YoudenCalculations!K34 ->  | J40: =IF(DataEntry!H33>0,DataEntry!H33,"") ->  | K40: =IF(DataEntry!H33>0,ABS(I40-YoudenCalculations!$K$1)/SQRT(J40^2+$J$11^2),"") ->  | L40: =IF(DataEntry!H33>0,J40/$B$14,"") ->  | M40: =IF(DataEntry!H33>0,IF(ABS(I40-YoudenCalculations!$K$1)>$T$2,"yes",""),"") ->  | S40: =IF(DataEntry!E33>0,IF(G40="yes","",C40),"") ->  | T40: =IF(DataEntry!E33>0,IF(M40="yes","",I40),"") ->  | U40: 24 | V40: =IF(DataEntry!E33>0,DataEntry!B33,#N/A) ->  | W40: =IF(DataEntry!E33>0,DataEntry!C33,#N/A) ->  | X40: =IF(DataEntry!E33>0,DataEntry!D33,#N/A) ->  | Y40: =IF(DataEntry!E33>0,DataEntry!E33,#N/A) ->  | Z40: =IF(DataEntry!E33>0,$J$5,#N/A) ->  | AE40: =IF(DataEntry!H33>0,DataEntry!B33,#N/A) ->  | AF40: =IF(DataEntry!H33>0,DataEntry!F33,#N/A) ->  | AG40: =IF(DataEntry!H33>0,DataEntry!G33,#N/A) ->  | AH40: =IF(DataEntry!H33>0,DataEntry!H33,#N/A) ->  | AI40: =IF(DataEntry!H33>0,$J$10,#N/A) ->  | AN40: =IF(DataEntry!E33>0,A40,"") ->  | AO40: =IF(DataEntry!E33>0,E40,#N/A) ->  | AP40: =IF(DataEntry!H33>0,K40,#N/A) ->  | AQ40: =IF(DataEntry!H33>0,1,#N/A) ->  | AS40: =IF(DataEntry!E33>0,A40,"") ->  | AT40: =IF(DataEntry!E33>0,F40,#N/A) ->  | AU40: =IF(DataEntry!H33>0,L40,#N/A) ->  | AV40: =IF(DataEntry!H33>0,3,#N/A) -> 
A41: =YoudenCalculations!I35 ->  | B41: =IF(DataEntry!E34>0,DataEntry!C34,"") ->  | C41: =YoudenCalculations!J35 ->  | D41: =IF(DataEntry!E34>0,DataEntry!E34,"") ->  | E41: =IF(DataEntry!E34>0,ABS(C41-YoudenCalculations!$J$1)/SQRT(D41^2+$J$6^2),"") ->  | F41: =IF(DataEntry!E34>0,D41/$B$14,"") ->  | G41: =IF(DataEntry!E34>0,IF(ABS(C41-YoudenCalculations!$J$1)>$S$2,"yes",""),"") ->  | H41: =IF(DataEntry!H34>0,DataEntry!F34,"") ->  | I41: =YoudenCalculations!K35 ->  | J41: =IF(DataEntry!H34>0,DataEntry!H34,"") ->  | K41: =IF(DataEntry!H34>0,ABS(I41-YoudenCalculations!$K$1)/SQRT(J41^2+$J$11^2),"") ->  | L41: =IF(DataEntry!H34>0,J41/$B$14,"") ->  | M41: =IF(DataEntry!H34>0,IF(ABS(I41-YoudenCalculations!$K$1)>$T$2,"yes",""),"") ->  | S41: =IF(DataEntry!E34>0,IF(G41="yes","",C41),"") ->  | T41: =IF(DataEntry!E34>0,IF(M41="yes","",I41),"") ->  | U41: 25 | V41: =IF(DataEntry!E34>0,DataEntry!B34,#N/A) ->  | W41: =IF(DataEntry!E34>0,DataEntry!C34,#N/A) ->  | X41: =IF(DataEntry!E34>0,DataEntry!D34,#N/A) ->  | Y41: =IF(DataEntry!E34>0,DataEntry!E34,#N/A) ->  | Z41: =IF(DataEntry!E34>0,$J$5,#N/A) ->  | AE41: =IF(DataEntry!H34>0,DataEntry!B34,#N/A) ->  | AF41: =IF(DataEntry!H34>0,DataEntry!F34,#N/A) ->  | AG41: =IF(DataEntry!H34>0,DataEntry!G34,#N/A) ->  | AH41: =IF(DataEntry!H34>0,DataEntry!H34,#N/A) ->  | AI41: =IF(DataEntry!H34>0,$J$10,#N/A) ->  | AN41: =IF(DataEntry!E34>0,A41,"") ->  | AO41: =IF(DataEntry!E34>0,E41,#N/A) ->  | AP41: =IF(DataEntry!H34>0,K41,#N/A) ->  | AQ41: =IF(DataEntry!H34>0,1,#N/A) ->  | AS41: =IF(DataEntry!E34>0,A41,"") ->  | AT41: =IF(DataEntry!E34>0,F41,#N/A) ->  | AU41: =IF(DataEntry!H34>0,L41,#N/A) ->  | AV41: =IF(DataEntry!H34>0,3,#N/A) -> 
A42: =YoudenCalculations!I36 ->  | B42: =IF(DataEntry!E35>0,DataEntry!C35,"") ->  | C42: =YoudenCalculations!J36 ->  | D42: =IF(DataEntry!E35>0,DataEntry!E35,"") ->  | E42: =IF(DataEntry!E35>0,ABS(C42-YoudenCalculations!$J$1)/SQRT(D42^2+$J$6^2),"") ->  | F42: =IF(DataEntry!E35>0,D42/$B$14,"") ->  | G42: =IF(DataEntry!E35>0,IF(ABS(C42-YoudenCalculations!$J$1)>$S$2,"yes",""),"") ->  | H42: =IF(DataEntry!H35>0,DataEntry!F35,"") ->  | I42: =YoudenCalculations!K36 ->  | J42: =IF(DataEntry!H35>0,DataEntry!H35,"") ->  | K42: =IF(DataEntry!H35>0,ABS(I42-YoudenCalculations!$K$1)/SQRT(J42^2+$J$11^2),"") ->  | L42: =IF(DataEntry!H35>0,J42/$B$14,"") ->  | M42: =IF(DataEntry!H35>0,IF(ABS(I42-YoudenCalculations!$K$1)>$T$2,"yes",""),"") ->  | S42: =IF(DataEntry!E35>0,IF(G42="yes","",C42),"") ->  | T42: =IF(DataEntry!E35>0,IF(M42="yes","",I42),"") ->  | U42: 26 | V42: =IF(DataEntry!E35>0,DataEntry!B35,#N/A) ->  | W42: =IF(DataEntry!E35>0,DataEntry!C35,#N/A) ->  | X42: =IF(DataEntry!E35>0,DataEntry!D35,#N/A) ->  | Y42: =IF(DataEntry!E35>0,DataEntry!E35,#N/A) ->  | Z42: =IF(DataEntry!E35>0,$J$5,#N/A) ->  | AE42: =IF(DataEntry!H35>0,DataEntry!B35,#N/A) ->  | AF42: =IF(DataEntry!H35>0,DataEntry!F35,#N/A) ->  | AG42: =IF(DataEntry!H35>0,DataEntry!G35,#N/A) ->  | AH42: =IF(DataEntry!H35>0,DataEntry!H35,#N/A) ->  | AI42: =IF(DataEntry!H35>0,$J$10,#N/A) ->  | AN42: =IF(DataEntry!E35>0,A42,"") ->  | AO42: =IF(DataEntry!E35>0,E42,#N/A) ->  | AP42: =IF(DataEntry!H35>0,K42,#N/A) ->  | AQ42: =IF(DataEntry!H35>0,1,#N/A) ->  | AS42: =IF(DataEntry!E35>0,A42,"") ->  | AT42: =IF(DataEntry!E35>0,F42,#N/A) ->  | AU42: =IF(DataEntry!H35>0,L42,#N/A) ->  | AV42: =IF(DataEntry!H35>0,3,#N/A) -> 
A43: =YoudenCalculations!I37 ->  | B43: =IF(DataEntry!E36>0,DataEntry!C36,"") ->  | C43: =YoudenCalculations!J37 ->  | D43: =IF(DataEntry!E36>0,DataEntry!E36,"") ->  | E43: =IF(DataEntry!E36>0,ABS(C43-YoudenCalculations!$J$1)/SQRT(D43^2+$J$6^2),"") ->  | F43: =IF(DataEntry!E36>0,D43/$B$14,"") ->  | G43: =IF(DataEntry!E36>0,IF(ABS(C43-YoudenCalculations!$J$1)>$S$2,"yes",""),"") ->  | H43: =IF(DataEntry!H36>0,DataEntry!F36,"") ->  | I43: =YoudenCalculations!K37 ->  | J43: =IF(DataEntry!H36>0,DataEntry!H36,"") ->  | K43: =IF(DataEntry!H36>0,ABS(I43-YoudenCalculations!$K$1)/SQRT(J43^2+$J$11^2),"") ->  | L43: =IF(DataEntry!H36>0,J43/$B$14,"") ->  | M43: =IF(DataEntry!H36>0,IF(ABS(I43-YoudenCalculations!$K$1)>$T$2,"yes",""),"") ->  | S43: =IF(DataEntry!E36>0,IF(G43="yes","",C43),"") ->  | T43: =IF(DataEntry!E36>0,IF(M43="yes","",I43),"") ->  | U43: 27 | V43: =IF(DataEntry!E36>0,DataEntry!B36,#N/A) ->  | W43: =IF(DataEntry!E36>0,DataEntry!C36,#N/A) ->  | X43: =IF(DataEntry!E36>0,DataEntry!D36,#N/A) ->  | Y43: =IF(DataEntry!E36>0,DataEntry!E36,#N/A) ->  | Z43: =IF(DataEntry!E36>0,$J$5,#N/A) ->  | AE43: =IF(DataEntry!H36>0,DataEntry!B36,#N/A) ->  | AF43: =IF(DataEntry!H36>0,DataEntry!F36,#N/A) ->  | AG43: =IF(DataEntry!H36>0,DataEntry!G36,#N/A) ->  | AH43: =IF(DataEntry!H36>0,DataEntry!H36,#N/A) ->  | AI43: =IF(DataEntry!H36>0,$J$10,#N/A) ->  | AN43: =IF(DataEntry!E36>0,A43,"") ->  | AO43: =IF(DataEntry!E36>0,E43,#N/A) ->  | AP43: =IF(DataEntry!H36>0,K43,#N/A) ->  | AQ43: =IF(DataEntry!H36>0,1,#N/A) ->  | AS43: =IF(DataEntry!E36>0,A43,"") ->  | AT43: =IF(DataEntry!E36>0,F43,#N/A) ->  | AU43: =IF(DataEntry!H36>0,L43,#N/A) ->  | AV43: =IF(DataEntry!H36>0,3,#N/A) -> 
A44: =YoudenCalculations!I38 ->  | B44: =IF(DataEntry!E37>0,DataEntry!C37,"") ->  | C44: =YoudenCalculations!J38 ->  | D44: =IF(DataEntry!E37>0,DataEntry!E37,"") ->  | E44: =IF(DataEntry!E37>0,ABS(C44-YoudenCalculations!$J$1)/SQRT(D44^2+$J$6^2),"") ->  | F44: =IF(DataEntry!E37>0,D44/$B$14,"") ->  | G44: =IF(DataEntry!E37>0,IF(ABS(C44-YoudenCalculations!$J$1)>$S$2,"yes",""),"") ->  | H44: =IF(DataEntry!H37>0,DataEntry!F37,"") ->  | I44: =YoudenCalculations!K38 ->  | J44: =IF(DataEntry!H37>0,DataEntry!H37,"") ->  | K44: =IF(DataEntry!H37>0,ABS(I44-YoudenCalculations!$K$1)/SQRT(J44^2+$J$11^2),"") ->  | L44: =IF(DataEntry!H37>0,J44/$B$14,"") ->  | M44: =IF(DataEntry!H37>0,IF(ABS(I44-YoudenCalculations!$K$1)>$T$2,"yes",""),"") ->  | S44: =IF(DataEntry!E37>0,IF(G44="yes","",C44),"") ->  | T44: =IF(DataEntry!E37>0,IF(M44="yes","",I44),"") ->  | U44: 28 | V44: =IF(DataEntry!E37>0,DataEntry!B37,#N/A) ->  | W44: =IF(DataEntry!E37>0,DataEntry!C37,#N/A) ->  | X44: =IF(DataEntry!E37>0,DataEntry!D37,#N/A) ->  | Y44: =IF(DataEntry!E37>0,DataEntry!E37,#N/A) ->  | Z44: =IF(DataEntry!E37>0,$J$5,#N/A) ->  | AE44: =IF(DataEntry!H37>0,DataEntry!B37,#N/A) ->  | AF44: =IF(DataEntry!H37>0,DataEntry!F37,#N/A) ->  | AG44: =IF(DataEntry!H37>0,DataEntry!G37,#N/A) ->  | AH44: =IF(DataEntry!H37>0,DataEntry!H37,#N/A) ->  | AI44: =IF(DataEntry!H37>0,$J$10,#N/A) ->  | AN44: =IF(DataEntry!E37>0,A44,"") ->  | AO44: =IF(DataEntry!E37>0,E44,#N/A) ->  | AP44: =IF(DataEntry!H37>0,K44,#N/A) ->  | AQ44: =IF(DataEntry!H37>0,1,#N/A) ->  | AS44: =IF(DataEntry!E37>0,A44,"") ->  | AT44: =IF(DataEntry!E37>0,F44,#N/A) ->  | AU44: =IF(DataEntry!H37>0,L44,#N/A) ->  | AV44: =IF(DataEntry!H37>0,3,#N/A) -> 
A45: =YoudenCalculations!I39 ->  | B45: =IF(DataEntry!E38>0,DataEntry!C38,"") ->  | C45: =YoudenCalculations!J39 ->  | D45: =IF(DataEntry!E38>0,DataEntry!E38,"") ->  | E45: =IF(DataEntry!E38>0,ABS(C45-YoudenCalculations!$J$1)/SQRT(D45^2+$J$6^2),"") ->  | F45: =IF(DataEntry!E38>0,D45/$B$14,"") ->  | G45: =IF(DataEntry!E38>0,IF(ABS(C45-YoudenCalculations!$J$1)>$S$2,"yes",""),"") ->  | H45: =IF(DataEntry!H38>0,DataEntry!F38,"") ->  | I45: =YoudenCalculations!K39 ->  | J45: =IF(DataEntry!H38>0,DataEntry!H38,"") ->  | K45: =IF(DataEntry!H38>0,ABS(I45-YoudenCalculations!$K$1)/SQRT(J45^2+$J$11^2),"") ->  | L45: =IF(DataEntry!H38>0,J45/$B$14,"") ->  | M45: =IF(DataEntry!H38>0,IF(ABS(I45-YoudenCalculations!$K$1)>$T$2,"yes",""),"") ->  | S45: =IF(DataEntry!E38>0,IF(G45="yes","",C45),"") ->  | T45: =IF(DataEntry!E38>0,IF(M45="yes","",I45),"") ->  | U45: 29 | V45: =IF(DataEntry!E38>0,DataEntry!B38,#N/A) ->  | W45: =IF(DataEntry!E38>0,DataEntry!C38,#N/A) ->  | X45: =IF(DataEntry!E38>0,DataEntry!D38,#N/A) ->  | Y45: =IF(DataEntry!E38>0,DataEntry!E38,#N/A) ->  | Z45: =IF(DataEntry!E38>0,$J$5,#N/A) ->  | AE45: =IF(DataEntry!H38>0,DataEntry!B38,#N/A) ->  | AF45: =IF(DataEntry!H38>0,DataEntry!F38,#N/A) ->  | AG45: =IF(DataEntry!H38>0,DataEntry!G38,#N/A) ->  | AH45: =IF(DataEntry!H38>0,DataEntry!H38,#N/A) ->  | AI45: =IF(DataEntry!H38>0,$J$10,#N/A) ->  | AN45: =IF(DataEntry!E38>0,A45,"") ->  | AO45: =IF(DataEntry!E38>0,E45,#N/A) ->  | AP45: =IF(DataEntry!H38>0,K45,#N/A) ->  | AQ45: =IF(DataEntry!H38>0,1,#N/A) ->  | AS45: =IF(DataEntry!E38>0,A45,"") ->  | AT45: =IF(DataEntry!E38>0,F45,#N/A) ->  | AU45: =IF(DataEntry!H38>0,L45,#N/A) ->  | AV45: =IF(DataEntry!H38>0,3,#N/A) -> 
A46: =YoudenCalculations!I40 ->  | B46: =IF(DataEntry!E39>0,DataEntry!C39,"") ->  | C46: =YoudenCalculations!J40 ->  | D46: =IF(DataEntry!E39>0,DataEntry!E39,"") ->  | E46: =IF(DataEntry!E39>0,ABS(C46-YoudenCalculations!$J$1)/SQRT(D46^2+$J$6^2),"") ->  | F46: =IF(DataEntry!E39>0,D46/$B$14,"") ->  | G46: =IF(DataEntry!E39>0,IF(ABS(C46-YoudenCalculations!$J$1)>$S$2,"yes",""),"") ->  | H46: =IF(DataEntry!H39>0,DataEntry!F39,"") ->  | I46: =YoudenCalculations!K40 ->  | J46: =IF(DataEntry!H39>0,DataEntry!H39,"") ->  | K46: =IF(DataEntry!H39>0,ABS(I46-YoudenCalculations!$K$1)/SQRT(J46^2+$J$11^2),"") ->  | L46: =IF(DataEntry!H39>0,J46/$B$14,"") ->  | M46: =IF(DataEntry!H39>0,IF(ABS(I46-YoudenCalculations!$K$1)>$T$2,"yes",""),"") ->  | S46: =IF(DataEntry!E39>0,IF(G46="yes","",C46),"") ->  | T46: =IF(DataEntry!E39>0,IF(M46="yes","",I46),"") ->  | U46: 30 | V46: =IF(DataEntry!E39>0,DataEntry!B39,#N/A) ->  | W46: =IF(DataEntry!E39>0,DataEntry!C39,#N/A) ->  | X46: =IF(DataEntry!E39>0,DataEntry!D39,#N/A) ->  | Y46: =IF(DataEntry!E39>0,DataEntry!E39,#N/A) ->  | Z46: =IF(DataEntry!E39>0,$J$5,#N/A) ->  | AE46: =IF(DataEntry!H39>0,DataEntry!B39,#N/A) ->  | AF46: =IF(DataEntry!H39>0,DataEntry!F39,#N/A) ->  | AG46: =IF(DataEntry!H39>0,DataEntry!G39,#N/A) ->  | AH46: =IF(DataEntry!H39>0,DataEntry!H39,#N/A) ->  | AI46: =IF(DataEntry!H39>0,$J$10,#N/A) ->  | AN46: =IF(DataEntry!E39>0,A46,"") ->  | AO46: =IF(DataEntry!E39>0,E46,#N/A) ->  | AP46: =IF(DataEntry!H39>0,K46,#N/A) ->  | AQ46: =IF(DataEntry!H39>0,1,#N/A) ->  | AS46: =IF(DataEntry!E39>0,A46,"") ->  | AT46: =IF(DataEntry!E39>0,F46,#N/A) ->  | AU46: =IF(DataEntry!H39>0,L46,#N/A) ->  | AV46: =IF(DataEntry!H39>0,3,#N/A) -> 

Sheet YoudenCalculations
A1: DO NOT CHANGE OR EDIT THIS SHEET! | I1: =IF(DataEntry!B7="Median",YoudenCalculations!I5,IF(DataEntry!B7="Mean",YoudenCalculations!I6,IF(AND(DataEntry!B7="NIST",DataEntry!K1="yes"),I7,"INPUT ERROR"))) -> Median= | J1: =IF(DataEntry!B7="Median",YoudenCalculations!J5,IF(DataEntry!B7="Mean",YoudenCalculations!J6,IF(AND(DataEntry!B7="NIST",DataEntry!K1="yes"),DataEntry!K3,"INPUT ERROR"))) -> 1.5 | K1: =IF(DataEntry!B7="Median",YoudenCalculations!K5,IF(DataEntry!B7="Mean",YoudenCalculations!K6,IF(AND(DataEntry!B7="NIST",DataEntry!K1="yes"),DataEntry!K6,"INPUT ERROR"))) -> -3 | P1: s= | Q1: =SQRT(SUM(Q11:Q40)/(COUNT(Q11:Q40)-1)) -> 2.919957115 | X1: =J10 -> 10 kg #1 | Y1: =J1 -> 1.5 | AB1: =X1 -> 10 kg #1 | AC1: Y | AD1: =X2 -> 10 kg #2 | AE1: Systematic
I2: Unc | J2: =IF(DataEntry!B7="Median",YoudenCalculations!J4,IF(DataEntry!B7="Mean",YoudenCalculations!J4,IF(AND(DataEntry!B7="NIST",DataEntry!K1="yes"),DataEntry!K4,"INPUT ERROR"))) -> 3.69362385 | K2: =IF(DataEntry!B7="Median",YoudenCalculations!K4,IF(DataEntry!B7="Mean",YoudenCalculations!K4,IF(AND(DataEntry!B7="NIST",DataEntry!K1="yes"),DataEntry!K7,"INPUT ERROR"))) -> 10.81995511 | P2: S*2.45= | Q2: =Q1*2.45 -> 7.153894932 | R2: "95% confidence" | X2: =K10 -> 10 kg #2 | Y2: =K1 -> -3 | AB2: =$Y$1-Y3 -> -5.653894932 | AC2: =SQRT(ABS(($Y$3^2)-((AB2-$Y$1)^2)))+$Y$2 -> -3
X3: radius | Y3: =Q2 -> 7.153894932 | Z3: =Y3/25 -> 0.2861557973 | AB3: =AB2+$Z$3 -> -5.367739135 | AC3: =SQRT(ABS(($Y$3^2)-((AB3-$Y$1)^2)))+$Y$2 -> -0.9969094191
I4: 2sd = | J4: =STDEV(J11:J40)*2 -> 3.69362385 | K4: =STDEV(K11:K40)*2 -> 10.81995511 | R4: Uncertainty Analysis | AB4: =AB3+$Z$3 -> -5.081583337 | AC4: -0.196257239
I5: Median= | J5: =MEDIAN(J11:J40) -> 1.5 | K5: =MEDIAN(K11:K40) -> -3 | R5: OUT R&S | S5: Both the random and systematic error exceed the uncertainty | AB5: -4.79542754 | AC5: 0.397911827
I6: Mean= | J6: =AVERAGE(J11:J40) -> 1.375 | K6: =AVERAGE(K11:K40) -> -1.875 | R6: OUT Sys | S6: Only the systematic error exceeds the uncertainty | AB6: -4.509271743 | AC6: 0.8816060874
I7: =IF(DataEntry!K1="yes","NIST","") ->  | J7: =IF(DataEntry!K1="yes",DataEntry!K3,"") ->  | K7: =IF(DataEntry!K1="yes",DataEntry!K6,"") ->  | O7: =M11^2 -> 0.125 | R7: OUT Ran | S7: Only the random portion of the error exceeds the uncertainty | AB7: -4.223115945 | AC7: 1.292336959
R8: Warning | S8: Only the summation of the random and systematic errors exceed the uncertainty | AB8: -3.936960148 | AC8: 1.649481373
R9: IN | S9: The measurement process appears to be within control | AB9: -3.650804351 | AC9: 1.964617531
I10: Metrologist | J10: =DataEntry!B4 -> 10 kg #1 | K10: =DataEntry!B5 -> 10 kg #2 | L10: sys | M10: ran | N10: SYS | O10: RAN | Q10: RAN^2 | R10: ERROR | S10: Unc | T10: Unc Test | AB10: -3.364648554 | AC10: 2.245322406
H11: 1 | I11: =IF(DataEntry!E10>0,DataEntry!B10,"") -> A | J11: =IF(DataEntry!E10>0,DataEntry!D10,"") -> -2 | K11: =IF(DataEntry!E10>0,DataEntry!G10,"") -> -7 | L11: =IF(DataEntry!E10>0,((K11-$K$1)+(J11-$J$1))/SQRT(2),"") -> -5.303300859 | M11: =IF(DataEntry!E10>0,SQRT((J11-(L11/SQRT(2)+$J$1))^2+(K11-(L11/SQRT(2)+$K$1))^2),"") -> 0.3535533906 | N11: =IF(DataEntry!E10>0,IF(L11=0,0,(L11/(ABS(L11)+M11))*R11),"") -> -4.98288085 | O11: =IF(DataEntry!E10>0,IF(M11=0,0,(M11/(ABS(L11)+M11))*R11),"") -> 0.3321920566 | Q11: =IF(DataEntry!E10>0,O11^2,"") -> 0.1103515625 | R11: =IF(DataEntry!E10>0,SQRT((J11-$J$1)^2+(K11-$K$1)^2),"") -> 5.315072906 | S11: =IF(DataEntry!E10>0,DataEntry!J10,"") -> 5 | T11: =IF(DataEntry!E10>0,IF(AND(ABS(N11)>S11,ABS(O11)>S11),$R$5,IF(ABS(N11)>S11,$R$6,IF(ABS(O11)>S11,$R$7,IF(ABS(N11)+ABS(O11)>S11,$R$8,$R$9)))),"") -> Warning | AB11: -3.078492756 | AC11: 2.496873364
H12: 2 | I12: =IF(DataEntry!E11>0,DataEntry!B11,"") -> B | J12: =IF(DataEntry!E11>0,DataEntry!D11,"") -> 1 | K12: =IF(DataEntry!E11>0,DataEntry!G11,"") -> -3 | L12: =IF(DataEntry!E11>0,((K12-$K$1)+(J12-$J$1))/SQRT(2),"") -> -0.3535533906 | M12: =IF(DataEntry!E11>0,SQRT((J12-(L12/SQRT(2)+$J$1))^2+(K12-(L12/SQRT(2)+$K$1))^2),"") -> 0.3535533906 | N12: =IF(DataEntry!E11>0,IF(L12=0,0,(L12/(ABS(L12)+M12))*R12),"") -> -0.25 | O12: =IF(DataEntry!E11>0,IF(M12=0,0,(M12/(ABS(L12)+M12))*R12),"") -> 0.25 | Q12: =IF(DataEntry!E11>0,O12^2,"") -> 0.0625 | R12: =IF(DataEntry!E11>0,SQRT((J12-$J$1)^2+(K12-$K$1)^2),"") -> 0.5 | S12: =IF(DataEntry!E11>0,DataEntry!J11,"") -> 8 | T12: =IF(DataEntry!E11>0,IF(AND(ABS(N12)>S12,ABS(O12)>S12),$R$5,IF(ABS(N12)>S12,$R$6,IF(ABS(O12)>S12,$R$7,IF(ABS(N12)+ABS(O12)>S12,$R$8,$R$9)))),"") -> IN | AB12: -2.792336959 | AC12: 2.723115945
H13: 3 | I13: =IF(DataEntry!E12>0,DataEntry!B12,"") -> C | J13: =IF(DataEntry!E12>0,DataEntry!D12,"") -> 4 | K13: =IF(DataEntry!E12>0,DataEntry!G12,"") -> -8 | L13: =IF(DataEntry!E12>0,((K13-$K$1)+(J13-$J$1))/SQRT(2),"") -> -1.767766953 | M13: =IF(DataEntry!E12>0,SQRT((J13-(L13/SQRT(2)+$J$1))^2+(K13-(L13/SQRT(2)+$K$1))^2),"") -> 5.303300859 | N13: =IF(DataEntry!E12>0,IF(L13=0,0,(L13/(ABS(L13)+M13))*R13),"") -> -1.397542486 | O13: =IF(DataEntry!E12>0,IF(M13=0,0,(M13/(ABS(L13)+M13))*R13),"") -> 4.192627458 | Q13: =IF(DataEntry!E12>0,O13^2,"") -> 17.578125 | R13: =IF(DataEntry!E12>0,SQRT((J13-$J$1)^2+(K13-$K$1)^2),"") -> 5.590169944 | S13: =IF(DataEntry!E12>0,DataEntry!J12,"") -> 6 | T13: =IF(DataEntry!E12>0,IF(AND(ABS(N13)>S13,ABS(O13)>S13),$R$5,IF(ABS(N13)>S13,$R$6,IF(ABS(O13)>S13,$R$7,IF(ABS(N13)+ABS(O13)>S13,$R$8,$R$9)))),"") -> IN | AB13: -2.506181162 | AC13: 2.926949063
H14: 4 | I14: =IF(DataEntry!E13>0,DataEntry!B13,"") -> D | J14: =IF(DataEntry!E13>0,DataEntry!D13,"") -> 3 | K14: =IF(DataEntry!E13>0,DataEntry!G13,"") -> 9 | L14: =IF(DataEntry!E13>0,((K14-$K$1)+(J14-$J$1))/SQRT(2),"") -> 9.545941546 | M14: =IF(DataEntry!E13>0,SQRT((J14-(L14/SQRT(2)+$J$1))^2+(K14-(L14/SQRT(2)+$K$1))^2),"") -> 7.424621202 | N14: =IF(DataEntry!E13>0,IF(L14=0,0,(L14/(ABS(L14)+M14))*R14),"") -> 6.802529975 | O14: =IF(DataEntry!E13>0,IF(M14=0,0,(M14/(ABS(L14)+M14))*R14),"") -> 5.290856647 | Q14: =IF(DataEntry!E13>0,O14^2,"") -> 27.99316406 | R14: =IF(DataEntry!E13>0,SQRT((J14-$J$1)^2+(K14-$K$1)^2),"") -> 12.09338662 | S14: =IF(DataEntry!E13>0,DataEntry!J13,"") -> 4 | T14: =IF(DataEntry!E13>0,IF(AND(ABS(N14)>S14,ABS(O14)>S14),$R$5,IF(ABS(N14)>S14,$R$6,IF(ABS(O14)>S14,$R$7,IF(ABS(N14)+ABS(O14)>S14,$R$8,$R$9)))),"") -> OUT R&S | AB14: -2.220025365 | AC14: 3.110615679
H15: 5 | I15: =IF(DataEntry!E14>0,DataEntry!B14,"") -> E | J15: =IF(DataEntry!E14>0,DataEntry!D14,"") -> 2 | K15: =IF(DataEntry!E14>0,DataEntry!G14,"") -> -4 | L15: =IF(DataEntry!E14>0,((K15-$K$1)+(J15-$J$1))/SQRT(2),"") -> -0.3535533906 | M15: =IF(DataEntry!E14>0,SQRT((J15-(L15/SQRT(2)+$J$1))^2+(K15-(L15/SQRT(2)+$K$1))^2),"") -> 1.060660172 | N15: =IF(DataEntry!E14>0,IF(L15=0,0,(L15/(ABS(L15)+M15))*R15),"") -> -0.2795084972 | O15: =IF(DataEntry!E14>0,IF(M15=0,0,(M15/(ABS(L15)+M15))*R15),"") -> 0.8385254916 | Q15: =IF(DataEntry!E14>0,O15^2,"") -> 0.703125 | R15: =IF(DataEntry!E14>0,SQRT((J15-$J$1)^2+(K15-$K$1)^2),"") -> 1.118033989 | S15: =IF(DataEntry!E14>0,DataEntry!J14,"") -> 2 | T15: =IF(DataEntry!E14>0,IF(AND(ABS(N15)>S15,ABS(O15)>S15),$R$5,IF(ABS(N15)>S15,$R$6,IF(ABS(O15)>S15,$R$7,IF(ABS(N15)+ABS(O15)>S15,$R$8,$R$9)))),"") -> IN | AB15: -1.933869567 | AC15: 3.27588659
H16: 6 | I16: =IF(DataEntry!E15>0,DataEntry!B15,"") -> F | J16: =IF(DataEntry!E15>0,DataEntry!D15,"") -> 0 | K16: =IF(DataEntry!E15>0,DataEntry!G15,"") -> 2 | L16: =IF(DataEntry!E15>0,((K16-$K$1)+(J16-$J$1))/SQRT(2),"") -> 2.474873734 | M16: =IF(DataEntry!E15>0,SQRT((J16-(L16/SQRT(2)+$J$1))^2+(K16-(L16/SQRT(2)+$K$1))^2),"") -> 4.596194078 | N16: =IF(DataEntry!E15>0,IF(L16=0,0,(L16/(ABS(L16)+M16))*R16),"") -> 1.827053639 | O16: =IF(DataEntry!E15>0,IF(M16=0,0,(M16/(ABS(L16)+M16))*R16),"") -> 3.393099615 | Q16: =IF(DataEntry!E15>0,O16^2,"") -> 11.513125 | R16: =IF(DataEntry!E15>0,SQRT((J16-$J$1)^2+(K16-$K$1)^2),"") -> 5.220153254 | S16: =IF(DataEntry!E15>0,DataEntry!J15,"") -> 7 | T16: =IF(DataEntry!E15>0,IF(AND(ABS(N16)>S16,ABS(O16)>S16),$R$5,IF(ABS(N16)>S16,$R$6,IF(ABS(O16)>S16,$R$7,IF(ABS(N16)+ABS(O16)>S16,$R$8,$R$9)))),"") -> IN | AB16: -1.64771377 | AC16: 3.424181716
H17: 7 | I17: =IF(DataEntry!E16>0,DataEntry!B16,"") -> G | J17: =IF(DataEntry!E16>0,DataEntry!D16,"") -> 1 | K17: =IF(DataEntry!E16>0,DataEntry!G16,"") -> -1 | L17: =IF(DataEntry!E16>0,((K17-$K$1)+(J17-$J$1))/SQRT(2),"") -> 1.060660172 | M17: =IF(DataEntry!E16>0,SQRT((J17-(L17/SQRT(2)+$J$1))^2+(K17-(L17/SQRT(2)+$K$1))^2),"") -> 1.767766953 | N17: =IF(DataEntry!E16>0,IF(L17=0,0,(L17/(ABS(L17)+M17))*R17),"") -> 0.7730823048 | O17: =IF(DataEntry!E16>0,IF(M17=0,0,(M17/(ABS(L17)+M17))*R17),"") -> 1.288470508 | Q17: =IF(DataEntry!E16>0,O17^2,"") -> 1.66015625 | R17: =IF(DataEntry!E16>0,SQRT((J17-$J$1)^2+(K17-$K$1)^2),"") -> 2.061552813 | S17: =IF(DataEntry!E16>0,DataEntry!J16,"") -> 5 | T17: =IF(DataEntry!E16>0,IF(AND(ABS(N17)>S17,ABS(O17)>S17),$R$5,IF(ABS(N17)>S17,$R$6,IF(ABS(O17)>S17,$R$7,IF(ABS(N17)+ABS(O17)>S17,$R$8,$R$9)))),"") -> IN | AB17: -1.361557973 | AC17: 3.556653008
H18: 8 | I18: =IF(DataEntry!E17>0,DataEntry!B17,"") -> H | J18: =IF(DataEntry!E17>0,DataEntry!D17,"") -> 2 | K18: =IF(DataEntry!E17>0,DataEntry!G17,"") -> -3 | L18: =IF(DataEntry!E17>0,((K18-$K$1)+(J18-$J$1))/SQRT(2),"") -> 0.3535533906 | M18: =IF(DataEntry!E17>0,SQRT((J18-(L18/SQRT(2)+$J$1))^2+(K18-(L18/SQRT(2)+$K$1))^2),"") -> 0.3535533906 | N18: =IF(DataEntry!E17>0,IF(L18=0,0,(L18/(ABS(L18)+M18))*R18),"") -> 0.25 | O18: =IF(DataEntry!E17>0,IF(M18=0,0,(M18/(ABS(L18)+M18))*R18),"") -> 0.25 | Q18: =IF(DataEntry!E17>0,O18^2,"") -> 0.0625 | R18: =IF(DataEntry!E17>0,SQRT((J18-$J$1)^2+(K18-$K$1)^2),"") -> 0.5 | S18: =IF(DataEntry!E17>0,DataEntry!J17,"") -> 9 | T18: =IF(DataEntry!E17>0,IF(AND(ABS(N18)>S18,ABS(O18)>S18),$R$5,IF(ABS(N18)>S18,$R$6,IF(ABS(O18)>S18,$R$7,IF(ABS(N18)+ABS(O18)>S18,$R$8,$R$9)))),"") -> IN | AB18: -1.075402175 | AC18: 3.674242753
H19: 9 | I19: =IF(DataEntry!E18>0,DataEntry!B18,"") ->  | J19: =IF(DataEntry!E18>0,DataEntry!D18,"") ->  | K19: =IF(DataEntry!E18>0,DataEntry!G18,"") ->  | L19: =IF(DataEntry!E18>0,((K19-$K$1)+(J19-$J$1))/SQRT(2),"") ->  | M19: =IF(DataEntry!E18>0,SQRT((J19-(L19/SQRT(2)+$J$1))^2+(K19-(L19/SQRT(2)+$K$1))^2),"") ->  | N19: =IF(DataEntry!E18>0,IF(L19=0,0,(L19/(ABS(L19)+M19))*R19),"") ->  | O19: =IF(DataEntry!E18>0,IF(M19=0,0,(M19/(ABS(L19)+M19))*R19),"") ->  | Q19: =IF(DataEntry!E18>0,O19^2,"") ->  | R19: =IF(DataEntry!E18>0,SQRT((J19-$J$1)^2+(K19-$K$1)^2),"") ->  | S19: =IF(DataEntry!E18>0,DataEntry!J18,"") ->  | T19: =IF(DataEntry!E18>0,IF(AND(ABS(N19)>S19,ABS(O19)>S19),$R$5,IF(ABS(N19)>S19,$R$6,IF(ABS(O19)>S19,$R$7,IF(ABS(N19)+ABS(O19)>S19,$R$8,$R$9)))),"") ->  | AB19: -0.7892463782 | AC19: 3.777725556
H20: 10 | I20: =IF(DataEntry!E19>0,DataEntry!B19,"") ->  | J20: =IF(DataEntry!E19>0,DataEntry!D19,"") ->  | K20: =IF(DataEntry!E19>0,DataEntry!G19,"") ->  | L20: =IF(DataEntry!E19>0,((K20-$K$1)+(J20-$J$1))/SQRT(2),"") ->  | M20: =IF(DataEntry!E19>0,SQRT((J20-(L20/SQRT(2)+$J$1))^2+(K20-(L20/SQRT(2)+$K$1))^2),"") ->  | N20: =IF(DataEntry!E19>0,IF(L20=0,0,(L20/(ABS(L20)+M20))*R20),"") ->  | O20: =IF(DataEntry!E19>0,IF(M20=0,0,(M20/(ABS(L20)+M20))*R20),"") ->  | Q20: =IF(DataEntry!E19>0,O20^2,"") ->  | R20: =IF(DataEntry!E19>0,SQRT((J20-$J$1)^2+(K20-$K$1)^2),"") ->  | S20: =IF(DataEntry!E19>0,DataEntry!J19,"") ->  | T20: =IF(DataEntry!E19>0,IF(AND(ABS(N20)>S20,ABS(O20)>S20),$R$5,IF(ABS(N20)>S20,$R$6,IF(ABS(O20)>S20,$R$7,IF(ABS(N20)+ABS(O20)>S20,$R$8,$R$9)))),"") ->  | AB20: -0.5030905809 | AC20: 3.867739135
H21: 11 | I21: =IF(DataEntry!E20>0,DataEntry!B20,"") ->  | J21: =IF(DataEntry!E20>0,DataEntry!D20,"") ->  | K21: =IF(DataEntry!E20>0,DataEntry!G20,"") ->  | L21: =IF(DataEntry!E20>0,((K21-$K$1)+(J21-$J$1))/SQRT(2),"") ->  | M21: =IF(DataEntry!E20>0,SQRT((J21-(L21/SQRT(2)+$J$1))^2+(K21-(L21/SQRT(2)+$K$1))^2),"") ->  | N21: =IF(DataEntry!E20>0,IF(L21=0,0,(L21/(ABS(L21)+M21))*R21),"") ->  | O21: =IF(DataEntry!E20>0,IF(M21=0,0,(M21/(ABS(L21)+M21))*R21),"") ->  | Q21: =IF(DataEntry!E20>0,O21^2,"") ->  | R21: =IF(DataEntry!E20>0,SQRT((J21-$J$1)^2+(K21-$K$1)^2),"") ->  | S21: =IF(DataEntry!E20>0,DataEntry!J20,"") ->  | T21: =IF(DataEntry!E20>0,IF(AND(ABS(N21)>S21,ABS(O21)>S21),$R$5,IF(ABS(N21)>S21,$R$6,IF(ABS(O21)>S21,$R$7,IF(ABS(N21)+ABS(O21)>S21,$R$8,$R$9)))),"") ->  | AB21: -0.2169347836 | AC21: 3.944807243
H22: 12 | I22: =IF(DataEntry!E21>0,DataEntry!B21,"") ->  | J22: =IF(DataEntry!E21>0,DataEntry!D21,"") ->  | K22: =IF(DataEntry!E21>0,DataEntry!G21,"") ->  | L22: =IF(DataEntry!E21>0,((K22-$K$1)+(J22-$J$1))/SQRT(2),"") ->  | M22: =IF(DataEntry!E21>0,SQRT((J22-(L22/SQRT(2)+$J$1))^2+(K22-(L22/SQRT(2)+$K$1))^2),"") ->  | N22: =IF(DataEntry!E21>0,IF(L22=0,0,(L22/(ABS(L22)+M22))*R22),"") ->  | O22: =IF(DataEntry!E21>0,IF(M22=0,0,(M22/(ABS(L22)+M22))*R22),"") ->  | Q22: =IF(DataEntry!E21>0,O22^2,"") ->  | R22: =IF(DataEntry!E21>0,SQRT((J22-$J$1)^2+(K22-$K$1)^2),"") ->  | S22: =IF(DataEntry!E21>0,DataEntry!J21,"") ->  | T22: =IF(DataEntry!E21>0,IF(AND(ABS(N22)>S22,ABS(O22)>S22),$R$5,IF(ABS(N22)>S22,$R$6,IF(ABS(O22)>S22,$R$7,IF(ABS(N22)+ABS(O22)>S22,$R$8,$R$9)))),"") ->  | AB22: 0.06922101364 | AC22: 4.009356903
H23: 13 | I23: =IF(DataEntry!E22>0,DataEntry!B22,"") ->  | J23: =IF(DataEntry!E22>0,DataEntry!D22,"") ->  | K23: =IF(DataEntry!E22>0,DataEntry!G22,"") ->  | L23: =IF(DataEntry!E22>0,((K23-$K$1)+(J23-$J$1))/SQRT(2),"") ->  | M23: =IF(DataEntry!E22>0,SQRT((J23-(L23/SQRT(2)+$J$1))^2+(K23-(L23/SQRT(2)+$K$1))^2),"") ->  | N23: =IF(DataEntry!E22>0,IF(L23=0,0,(L23/(ABS(L23)+M23))*R23),"") ->  | O23: =IF(DataEntry!E22>0,IF(M23=0,0,(M23/(ABS(L23)+M23))*R23),"") ->  | Q23: =IF(DataEntry!E22>0,O23^2,"") ->  | R23: =IF(DataEntry!E22>0,SQRT((J23-$J$1)^2+(K23-$K$1)^2),"") ->  | S23: =IF(DataEntry!E22>0,DataEntry!J22,"") ->  | T23: =IF(DataEntry!E22>0,IF(AND(ABS(N23)>S23,ABS(O23)>S23),$R$5,IF(ABS(N23)>S23,$R$6,IF(ABS(O23)>S23,$R$7,IF(ABS(N23)+ABS(O23)>S23,$R$8,$R$9)))),"") ->  | AB23: 0.3553768109 | AC23: 4.061731406
H24: 14 | I24: =IF(DataEntry!E23>0,DataEntry!B23,"") ->  | J24: =IF(DataEntry!E23>0,DataEntry!D23,"") ->  | K24: =IF(DataEntry!E23>0,DataEntry!G23,"") ->  | L24: =IF(DataEntry!E23>0,((K24-$K$1)+(J24-$J$1))/SQRT(2),"") ->  | M24: =IF(DataEntry!E23>0,SQRT((J24-(L24/SQRT(2)+$J$1))^2+(K24-(L24/SQRT(2)+$K$1))^2),"") ->  | N24: =IF(DataEntry!E23>0,IF(L24=0,0,(L24/(ABS(L24)+M24))*R24),"") ->  | O24: =IF(DataEntry!E23>0,IF(M24=0,0,(M24/(ABS(L24)+M24))*R24),"") ->  | Q24: =IF(DataEntry!E23>0,O24^2,"") ->  | R24: =IF(DataEntry!E23>0,SQRT((J24-$J$1)^2+(K24-$K$1)^2),"") ->  | S24: =IF(DataEntry!E23>0,DataEntry!J23,"") ->  | T24: =IF(DataEntry!E23>0,IF(AND(ABS(N24)>S24,ABS(O24)>S24),$R$5,IF(ABS(N24)>S24,$R$6,IF(ABS(O24)>S24,$R$7,IF(ABS(N24)+ABS(O24)>S24,$R$8,$R$9)))),"") ->  | AB24: 0.6415326082 | AC24: 4.102200112
H25: 15 | I25: =IF(DataEntry!E24>0,DataEntry!B24,"") ->  | J25: =IF(DataEntry!E24>0,DataEntry!D24,"") ->  | K25: =IF(DataEntry!E24>0,DataEntry!G24,"") ->  | L25: =IF(DataEntry!E24>0,((K25-$K$1)+(J25-$J$1))/SQRT(2),"") ->  | M25: =IF(DataEntry!E24>0,SQRT((J25-(L25/SQRT(2)+$J$1))^2+(K25-(L25/SQRT(2)+$K$1))^2),"") ->  | N25: =IF(DataEntry!E24>0,IF(L25=0,0,(L25/(ABS(L25)+M25))*R25),"") ->  | O25: =IF(DataEntry!E24>0,IF(M25=0,0,(M25/(ABS(L25)+M25))*R25),"") ->  | Q25: =IF(DataEntry!E24>0,O25^2,"") ->  | R25: =IF(DataEntry!E24>0,SQRT((J25-$J$1)^2+(K25-$K$1)^2),"") ->  | S25: =IF(DataEntry!E24>0,DataEntry!J24,"") ->  | T25: =IF(DataEntry!E24>0,IF(AND(ABS(N25)>S25,ABS(O25)>S25),$R$5,IF(ABS(N25)>S25,$R$6,IF(ABS(O25)>S25,$R$7,IF(ABS(N25)+ABS(O25)>S25,$R$8,$R$9)))),"") ->  | AB25: 0.9276884055 | AC25: 4.130965722
H26: 16 | I26: =IF(DataEntry!E25>0,DataEntry!B25,"") ->  | J26: =IF(DataEntry!E25>0,DataEntry!D25,"") ->  | K26: =IF(DataEntry!E25>0,DataEntry!G25,"") ->  | L26: =IF(DataEntry!E25>0,((K26-$K$1)+(J26-$J$1))/SQRT(2),"") ->  | M26: =IF(DataEntry!E25>0,SQRT((J26-(L26/SQRT(2)+$J$1))^2+(K26-(L26/SQRT(2)+$K$1))^2),"") ->  | N26: =IF(DataEntry!E25>0,IF(L26=0,0,(L26/(ABS(L26)+M26))*R26),"") ->  | O26: =IF(DataEntry!E25>0,IF(M26=0,0,(M26/(ABS(L26)+M26))*R26),"") ->  | Q26: =IF(DataEntry!E25>0,O26^2,"") ->  | R26: =IF(DataEntry!E25>0,SQRT((J26-$J$1)^2+(K26-$K$1)^2),"") ->  | S26: =IF(DataEntry!E25>0,DataEntry!J25,"") ->  | T26: =IF(DataEntry!E25>0,IF(AND(ABS(N26)>S26,ABS(O26)>S26),$R$5,IF(ABS(N26)>S26,$R$6,IF(ABS(O26)>S26,$R$7,IF(ABS(N26)+ABS(O26)>S26,$R$8,$R$9)))),"") ->  | AB26: 1.213844203 | AC26: 4.148169525
H27: 17 | I27: =IF(DataEntry!E26>0,DataEntry!B26,"") ->  | J27: =IF(DataEntry!E26>0,DataEntry!D26,"") ->  | K27: =IF(DataEntry!E26>0,DataEntry!G26,"") ->  | L27: =IF(DataEntry!E26>0,((K27-$K$1)+(J27-$J$1))/SQRT(2),"") ->  | M27: =IF(DataEntry!E26>0,SQRT((J27-(L27/SQRT(2)+$J$1))^2+(K27-(L27/SQRT(2)+$K$1))^2),"") ->  | N27: =IF(DataEntry!E26>0,IF(L27=0,0,(L27/(ABS(L27)+M27))*R27),"") ->  | O27: =IF(DataEntry!E26>0,IF(M27=0,0,(M27/(ABS(L27)+M27))*R27),"") ->  | Q27: =IF(DataEntry!E26>0,O27^2,"") ->  | R27: =IF(DataEntry!E26>0,SQRT((J27-$J$1)^2+(K27-$K$1)^2),"") ->  | S27: =IF(DataEntry!E26>0,DataEntry!J26,"") ->  | T27: =IF(DataEntry!E26>0,IF(AND(ABS(N27)>S27,ABS(O27)>S27),$R$5,IF(ABS(N27)>S27,$R$6,IF(ABS(O27)>S27,$R$7,IF(ABS(N27)+ABS(O27)>S27,$R$8,$R$9)))),"") ->  | AB27: 1.5 | AC27: 4.153894932
H28: 18 | I28: =IF(DataEntry!E27>0,DataEntry!B27,"") ->  | J28: =IF(DataEntry!E27>0,DataEntry!D27,"") ->  | K28: =IF(DataEntry!E27>0,DataEntry!G27,"") ->  | L28: =IF(DataEntry!E27>0,((K28-$K$1)+(J28-$J$1))/SQRT(2),"") ->  | M28: =IF(DataEntry!E27>0,SQRT((J28-(L28/SQRT(2)+$J$1))^2+(K28-(L28/SQRT(2)+$K$1))^2),"") ->  | N28: =IF(DataEntry!E27>0,IF(L28=0,0,(L28/(ABS(L28)+M28))*R28),"") ->  | O28: =IF(DataEntry!E27>0,IF(M28=0,0,(M28/(ABS(L28)+M28))*R28),"") ->  | Q28: =IF(DataEntry!E27>0,O28^2,"") ->  | R28: =IF(DataEntry!E27>0,SQRT((J28-$J$1)^2+(K28-$K$1)^2),"") ->  | S28: =IF(DataEntry!E27>0,DataEntry!J27,"") ->  | T28: =IF(DataEntry!E27>0,IF(AND(ABS(N28)>S28,ABS(O28)>S28),$R$5,IF(ABS(N28)>S28,$R$6,IF(ABS(O28)>S28,$R$7,IF(ABS(N28)+ABS(O28)>S28,$R$8,$R$9)))),"") ->  | AB28: 1.786155797 | AC28: 4.148169525
H29: 19 | I29: =IF(DataEntry!E28>0,DataEntry!B28,"") ->  | J29: =IF(DataEntry!E28>0,DataEntry!D28,"") ->  | K29: =IF(DataEntry!E28>0,DataEntry!G28,"") ->  | L29: =IF(DataEntry!E28>0,((K29-$K$1)+(J29-$J$1))/SQRT(2),"") ->  | M29: =IF(DataEntry!E28>0,SQRT((J29-(L29/SQRT(2)+$J$1))^2+(K29-(L29/SQRT(2)+$K$1))^2),"") ->  | N29: =IF(DataEntry!E28>0,IF(L29=0,0,(L29/(ABS(L29)+M29))*R29),"") ->  | O29: =IF(DataEntry!E28>0,IF(M29=0,0,(M29/(ABS(L29)+M29))*R29),"") ->  | Q29: =IF(DataEntry!E28>0,O29^2,"") ->  | R29: =IF(DataEntry!E28>0,SQRT((J29-$J$1)^2+(K29-$K$1)^2),"") ->  | S29: =IF(DataEntry!E28>0,DataEntry!J28,"") ->  | T29: =IF(DataEntry!E28>0,IF(AND(ABS(N29)>S29,ABS(O29)>S29),$R$5,IF(ABS(N29)>S29,$R$6,IF(ABS(O29)>S29,$R$7,IF(ABS(N29)+ABS(O29)>S29,$R$8,$R$9)))),"") ->  | AB29: 2.072311595 | AC29: 4.130965722
H30: 20 | I30: =IF(DataEntry!E29>0,DataEntry!B29,"") ->  | J30: =IF(DataEntry!E29>0,DataEntry!D29,"") ->  | K30: =IF(DataEntry!E29>0,DataEntry!G29,"") ->  | L30: =IF(DataEntry!E29>0,((K30-$K$1)+(J30-$J$1))/SQRT(2),"") ->  | M30: =IF(DataEntry!E29>0,SQRT((J30-(L30/SQRT(2)+$J$1))^2+(K30-(L30/SQRT(2)+$K$1))^2),"") ->  | N30: =IF(DataEntry!E29>0,IF(L30=0,0,(L30/(ABS(L30)+M30))*R30),"") ->  | O30: =IF(DataEntry!E29>0,IF(M30=0,0,(M30/(ABS(L30)+M30))*R30),"") ->  | Q30: =IF(DataEntry!E29>0,O30^2,"") ->  | R30: =IF(DataEntry!E29>0,SQRT((J30-$J$1)^2+(K30-$K$1)^2),"") ->  | S30: =IF(DataEntry!E29>0,DataEntry!J29,"") ->  | T30: =IF(DataEntry!E29>0,IF(AND(ABS(N30)>S30,ABS(O30)>S30),$R$5,IF(ABS(N30)>S30,$R$6,IF(ABS(O30)>S30,$R$7,IF(ABS(N30)+ABS(O30)>S30,$R$8,$R$9)))),"") ->  | AB30: 2.358467392 | AC30: 4.102200112
H31: 21 | I31: =IF(DataEntry!E30>0,DataEntry!B30,"") ->  | J31: =IF(DataEntry!E30>0,DataEntry!D30,"") ->  | K31: =IF(DataEntry!E30>0,DataEntry!G30,"") ->  | L31: =IF(DataEntry!E30>0,((K31-$K$1)+(J31-$J$1))/SQRT(2),"") ->  | M31: =IF(DataEntry!E30>0,SQRT((J31-(L31/SQRT(2)+$J$1))^2+(K31-(L31/SQRT(2)+$K$1))^2),"") ->  | N31: =IF(DataEntry!E30>0,IF(L31=0,0,(L31/(ABS(L31)+M31))*R31),"") ->  | O31: =IF(DataEntry!E30>0,IF(M31=0,0,(M31/(ABS(L31)+M31))*R31),"") ->  | Q31: =IF(DataEntry!E30>0,O31^2,"") ->  | R31: =IF(DataEntry!E30>0,SQRT((J31-$J$1)^2+(K31-$K$1)^2),"") ->  | S31: =IF(DataEntry!E30>0,DataEntry!J30,"") ->  | T31: =IF(DataEntry!E30>0,IF(AND(ABS(N31)>S31,ABS(O31)>S31),$R$5,IF(ABS(N31)>S31,$R$6,IF(ABS(O31)>S31,$R$7,IF(ABS(N31)+ABS(O31)>S31,$R$8,$R$9)))),"") ->  | AB31: 2.644623189 | AC31: 4.061731406
H32: 22 | I32: =IF(DataEntry!E31>0,DataEntry!B31,"") ->  | J32: =IF(DataEntry!E31>0,DataEntry!D31,"") ->  | K32: =IF(DataEntry!E31>0,DataEntry!G31,"") ->  | L32: =IF(DataEntry!E31>0,((K32-$K$1)+(J32-$J$1))/SQRT(2),"") ->  | M32: =IF(DataEntry!E31>0,SQRT((J32-(L32/SQRT(2)+$J$1))^2+(K32-(L32/SQRT(2)+$K$1))^2),"") ->  | N32: =IF(DataEntry!E31>0,IF(L32=0,0,(L32/(ABS(L32)+M32))*R32),"") ->  | O32: =IF(DataEntry!E31>0,IF(M32=0,0,(M32/(ABS(L32)+M32))*R32),"") ->  | Q32: =IF(DataEntry!E31>0,O32^2,"") ->  | R32: =IF(DataEntry!E31>0,SQRT((J32-$J$1)^2+(K32-$K$1)^2),"") ->  | S32: =IF(DataEntry!E31>0,DataEntry!J31,"") ->  | T32: =IF(DataEntry!E31>0,IF(AND(ABS(N32)>S32,ABS(O32)>S32),$R$5,IF(ABS(N32)>S32,$R$6,IF(ABS(O32)>S32,$R$7,IF(ABS(N32)+ABS(O32)>S32,$R$8,$R$9)))),"") ->  | AB32: 2.930778986 | AC32: 4.009356903
H33: 23 | I33: =IF(DataEntry!E32>0,DataEntry!B32,"") ->  | J33: =IF(DataEntry!E32>0,DataEntry!D32,"") ->  | K33: =IF(DataEntry!E32>0,DataEntry!G32,"") ->  | L33: =IF(DataEntry!E32>0,((K33-$K$1)+(J33-$J$1))/SQRT(2),"") ->  | M33: =IF(DataEntry!E32>0,SQRT((J33-(L33/SQRT(2)+$J$1))^2+(K33-(L33/SQRT(2)+$K$1))^2),"") ->  | N33: =IF(DataEntry!E32>0,IF(L33=0,0,(L33/(ABS(L33)+M33))*R33),"") ->  | O33: =IF(DataEntry!E32>0,IF(M33=0,0,(M33/(ABS(L33)+M33))*R33),"") ->  | Q33: =IF(DataEntry!E32>0,O33^2,"") ->  | R33: =IF(DataEntry!E32>0,SQRT((J33-$J$1)^2+(K33-$K$1)^2),"") ->  | S33: =IF(DataEntry!E32>0,DataEntry!J32,"") ->  | T33: =IF(DataEntry!E32>0,IF(AND(ABS(N33)>S33,ABS(O33)>S33),$R$5,IF(ABS(N33)>S33,$R$6,IF(ABS(O33)>S33,$R$7,IF(ABS(N33)+ABS(O33)>S33,$R$8,$R$9)))),"") ->  | AB33: 3.216934784 | AC33: 3.944807243
H34: 24 | I34: =IF(DataEntry!E33>0,DataEntry!B33,"") ->  | J34: =IF(DataEntry!E33>0,DataEntry!D33,"") ->  | K34: =IF(DataEntry!E33>0,DataEntry!G33,"") ->  | L34: =IF(DataEntry!E33>0,((K34-$K$1)+(J34-$J$1))/SQRT(2),"") ->  | M34: =IF(DataEntry!E33>0,SQRT((J34-(L34/SQRT(2)+$J$1))^2+(K34-(L34/SQRT(2)+$K$1))^2),"") ->  | N34: =IF(DataEntry!E33>0,IF(L34=0,0,(L34/(ABS(L34)+M34))*R34),"") ->  | O34: =IF(DataEntry!E33>0,IF(M34=0,0,(M34/(ABS(L34)+M34))*R34),"") ->  | Q34: =IF(DataEntry!E33>0,O34^2,"") ->  | R34: =IF(DataEntry!E33>0,SQRT((J34-$J$1)^2+(K34-$K$1)^2),"") ->  | S34: =IF(DataEntry!E33>0,DataEntry!J33,"") ->  | T34: =IF(DataEntry!E33>0,IF(AND(ABS(N34)>S34,ABS(O34)>S34),$R$5,IF(ABS(N34)>S34,$R$6,IF(ABS(O34)>S34,$R$7,IF(ABS(N34)+ABS(O34)>S34,$R$8,$R$9)))),"") ->  | AB34: 3.503090581 | AC34: 3.867739135
H35: 25 | I35: =IF(DataEntry!E34>0,DataEntry!B34,"") ->  | J35: =IF(DataEntry!E34>0,DataEntry!D34,"") ->  | K35: =IF(DataEntry!E34>0,DataEntry!G34,"") ->  | L35: =IF(DataEntry!E34>0,((K35-$K$1)+(J35-$J$1))/SQRT(2),"") ->  | M35: =IF(DataEntry!E34>0,SQRT((J35-(L35/SQRT(2)+$J$1))^2+(K35-(L35/SQRT(2)+$K$1))^2),"") ->  | N35: =IF(DataEntry!E34>0,IF(L35=0,0,(L35/(ABS(L35)+M35))*R35),"") ->  | O35: =IF(DataEntry!E34>0,IF(M35=0,0,(M35/(ABS(L35)+M35))*R35),"") ->  | Q35: =IF(DataEntry!E34>0,O35^2,"") ->  | R35: =IF(DataEntry!E34>0,SQRT((J35-$J$1)^2+(K35-$K$1)^2),"") ->  | S35: =IF(DataEntry!E34>0,DataEntry!J34,"") ->  | T35: =IF(DataEntry!E34>0,IF(AND(ABS(N35)>S35,ABS(O35)>S35),$R$5,IF(ABS(N35)>S35,$R$6,IF(ABS(O35)>S35,$R$7,IF(ABS(N35)+ABS(O35)>S35,$R$8,$R$9)))),"") ->  | AB35: 3.789246378 | AC35: 3.777725556
H36: 26 | I36: =IF(DataEntry!E35>0,DataEntry!B35,"") ->  | J36: =IF(DataEntry!E35>0,DataEntry!D35,"") ->  | K36: =IF(DataEntry!E35>0,DataEntry!G35,"") ->  | L36: =IF(DataEntry!E35>0,((K36-$K$1)+(J36-$J$1))/SQRT(2),"") ->  | M36: =IF(DataEntry!E35>0,SQRT((J36-(L36/SQRT(2)+$J$1))^2+(K36-(L36/SQRT(2)+$K$1))^2),"") ->  | N36: =IF(DataEntry!E35>0,IF(L36=0,0,(L36/(ABS(L36)+M36))*R36),"") ->  | O36: =IF(DataEntry!E35>0,IF(M36=0,0,(M36/(ABS(L36)+M36))*R36),"") ->  | Q36: =IF(DataEntry!E35>0,O36^2,"") ->  | R36: =IF(DataEntry!E35>0,SQRT((J36-$J$1)^2+(K36-$K$1)^2),"") ->  | S36: =IF(DataEntry!E35>0,DataEntry!J35,"") ->  | T36: =IF(DataEntry!E35>0,IF(AND(ABS(N36)>S36,ABS(O36)>S36),$R$5,IF(ABS(N36)>S36,$R$6,IF(ABS(O36)>S36,$R$7,IF(ABS(N36)+ABS(O36)>S36,$R$8,$R$9)))),"") ->  | AB36: 4.075402175 | AC36: 3.674242753
H37: 27 | I37: =IF(DataEntry!E36>0,DataEntry!B36,"") ->  | J37: =IF(DataEntry!E36>0,DataEntry!D36,"") ->  | K37: =IF(DataEntry!E36>0,DataEntry!G36,"") ->  | L37: =IF(DataEntry!E36>0,((K37-$K$1)+(J37-$J$1))/SQRT(2),"") ->  | M37: =IF(DataEntry!E36>0,SQRT((J37-(L37/SQRT(2)+$J$1))^2+(K37-(L37/SQRT(2)+$K$1))^2),"") ->  | N37: =IF(DataEntry!E36>0,IF(L37=0,0,(L37/(ABS(L37)+M37))*R37),"") ->  | O37: =IF(DataEntry!E36>0,IF(M37=0,0,(M37/(ABS(L37)+M37))*R37),"") ->  | Q37: =IF(DataEntry!E36>0,O37^2,"") ->  | R37: =IF(DataEntry!E36>0,SQRT((J37-$J$1)^2+(K37-$K$1)^2),"") ->  | S37: =IF(DataEntry!E36>0,DataEntry!J36,"") ->  | T37: =IF(DataEntry!E36>0,IF(AND(ABS(N37)>S37,ABS(O37)>S37),$R$5,IF(ABS(N37)>S37,$R$6,IF(ABS(O37)>S37,$R$7,IF(ABS(N37)+ABS(O37)>S37,$R$8,$R$9)))),"") ->  | AB37: 4.361557973 | AC37: 3.556653008
H38: 28 | I38: =IF(DataEntry!E37>0,DataEntry!B37,"") ->  | J38: =IF(DataEntry!E37>0,DataEntry!D37,"") ->  | K38: =IF(DataEntry!E37>0,DataEntry!G37,"") ->  | L38: =IF(DataEntry!E37>0,((K38-$K$1)+(J38-$J$1))/SQRT(2),"") ->  | M38: =IF(DataEntry!E37>0,SQRT((J38-(L38/SQRT(2)+$J$1))^2+(K38-(L38/SQRT(2)+$K$1))^2),"") ->  | N38: =IF(DataEntry!E37>0,IF(L38=0,0,(L38/(ABS(L38)+M38))*R38),"") ->  | O38: =IF(DataEntry!E37>0,IF(M38=0,0,(M38/(ABS(L38)+M38))*R38),"") ->  | Q38: =IF(DataEntry!E37>0,O38^2,"") ->  | R38: =IF(DataEntry!E37>0,SQRT((J38-$J$1)^2+(K38-$K$1)^2),"") ->  | S38: =IF(DataEntry!E37>0,DataEntry!J37,"") ->  | T38: =IF(DataEntry!E37>0,IF(AND(ABS(N38)>S38,ABS(O38)>S38),$R$5,IF(ABS(N38)>S38,$R$6,IF(ABS(O38)>S38,$R$7,IF(ABS(N38)+ABS(O38)>S38,$R$8,$R$9)))),"") ->  | AB38: 4.64771377 | AC38: 3.424181716
H39: 29 | I39: =IF(DataEntry!E38>0,DataEntry!B38,"") ->  | J39: =IF(DataEntry!E38>0,DataEntry!D38,"") ->  | K39: =IF(DataEntry!E38>0,DataEntry!G38,"") ->  | L39: =IF(DataEntry!E38>0,((K39-$K$1)+(J39-$J$1))/SQRT(2),"") ->  | M39: =IF(DataEntry!E38>0,SQRT((J39-(L39/SQRT(2)+$J$1))^2+(K39-(L39/SQRT(2)+$K$1))^2),"") ->  | N39: =IF(DataEntry!E38>0,IF(L39=0,0,(L39/(ABS(L39)+M39))*R39),"") ->  | O39: =IF(DataEntry!E38>0,IF(M39=0,0,(M39/(ABS(L39)+M39))*R39),"") ->  | Q39: =IF(DataEntry!E38>0,O39^2,"") ->  | R39: =IF(DataEntry!E38>0,SQRT((J39-$J$1)^2+(K39-$K$1)^2),"") ->  | S39: =IF(DataEntry!E38>0,DataEntry!J38,"") ->  | T39: =IF(DataEntry!E38>0,IF(AND(ABS(N39)>S39,ABS(O39)>S39),$R$5,IF(ABS(N39)>S39,$R$6,IF(ABS(O39)>S39,$R$7,IF(ABS(N39)+ABS(O39)>S39,$R$8,$R$9)))),"") ->  | AB39: 4.933869567 | AC39: 3.27588659
H40: 30 | I40: =IF(DataEntry!E39>0,DataEntry!B39,"") ->  | J40: =IF(DataEntry!E39>0,DataEntry!D39,"") ->  | K40: =IF(DataEntry!E39>0,DataEntry!G39,"") ->  | L40: =IF(DataEntry!E39>0,((K40-$K$1)+(J40-$J$1))/SQRT(2),"") ->  | M40: =IF(DataEntry!E39>0,SQRT((J40-(L40/SQRT(2)+$J$1))^2+(K40-(L40/SQRT(2)+$K$1))^2),"") ->  | N40: =IF(DataEntry!E39>0,IF(L40=0,0,(L40/(ABS(L40)+M40))*R40),"") ->  | O40: =IF(DataEntry!E39>0,IF(M40=0,0,(M40/(ABS(L40)+M40))*R40),"") ->  | Q40: =IF(DataEntry!E39>0,O40^2,"") ->  | R40: =IF(DataEntry!E39>0,SQRT((J40-$J$1)^2+(K40-$K$1)^2),"") ->  | S40: =IF(DataEntry!E39>0,DataEntry!J39,"") ->  | T40: =IF(DataEntry!E39>0,IF(AND(ABS(N40)>S40,ABS(O40)>S40),$R$5,IF(ABS(N40)>S40,$R$6,IF(ABS(O40)>S40,$R$7,IF(ABS(N40)+ABS(O40)>S40,$R$8,$R$9)))),"") ->  | AB40: 5.220025365 | AC40: 3.110615679
AB41: 5.506181162 | AC41: 2.926949063
AB42: 5.792336959 | AC42: 2.723115945
AB43: 6.078492756 | AC43: 2.496873364
AB44: 6.364648554 | AC44: 2.245322406
AB45: 6.650804351 | AC45: 1.964617531
AB46: 6.936960148 | AC46: 1.649481373
AB47: 7.223115945 | AC47: 1.292336959
AB48: 7.509271743 | AC48: 0.8816060874
AB49: 7.79542754 | AC49: 0.397911827
AB50: 8.081583337 | AC50: -0.196257239
AB51: 8.367739135 | AC51: -0.9969094191
AB52: 8.653894932 | AC52: -2.999999696
AB53: =AB52-$Z$3 -> 8.367739135 | AC53: =-SQRT(ABS(($Y$3^2)-((AB53-$Y$1)^2)))+$Y$2 -> -5.003090581
AB54: =AB53-$Z$3 -> 8.081583337 | AC54: =-SQRT(ABS(($Y$3^2)-((AB54-$Y$1)^2)))+$Y$2 -> -5.803742761
AB55: 7.79542754 | AC55: -6.397911827
AB56: 7.509271743 | AC56: -6.881606087
AB57: 7.223115945 | AC57: -7.292336959
AB58: 6.936960148 | AC58: -7.649481373
AB59: 6.650804351 | AC59: -7.964617531
AB60: 6.364648554 | AC60: -8.245322406
AB61: 6.078492756 | AC61: -8.496873364
AB62: 5.792336959 | AC62: -8.723115945
AB63: 5.506181162 | AC63: -8.926949063
AB64: 5.220025365 | AC64: -9.110615679
AB65: 4.933869567 | AC65: -9.27588659
AB66: 4.64771377 | AC66: -9.424181716
AB67: 4.361557973 | AC67: -9.556653008
AB68: 4.075402175 | AC68: -9.674242753
AB69: 3.789246378 | AC69: -9.777725556
AB70: 3.503090581 | AC70: -9.867739135
AB71: 3.216934784 | AC71: -9.944807243
AB72: 2.930778986 | AC72: -10.0093569
AB73: 2.644623189 | AC73: -10.06173141
AB74: 2.358467392 | AC74: -10.10220011
AB75: 2.072311595 | AC75: -10.13096572
AB76: 1.786155797 | AC76: -10.14816952
AB77: 1.5 | AC77: -10.15389493
AB78: 1.213844203 | AC78: -10.14816952
AB79: 0.9276884055 | AC79: -10.13096572
AB80: 0.6415326082 | AC80: -10.10220011
AB81: 0.3553768109 | AC81: -10.06173141
AB82: 0.06922101364 | AC82: -10.0093569
AB83: -0.2169347836 | AC83: -9.944807243
AB84: -0.5030905809 | AC84: -9.867739135
AB85: -0.7892463782 | AC85: -9.777725556
AB86: -1.075402175 | AC86: -9.674242753
AB87: -1.361557973 | AC87: -9.556653008
AB88: -1.64771377 | AC88: -9.424181716
AB89: -1.933869567 | AC89: -9.27588659
AB90: -2.220025365 | AC90: -9.110615679
AB91: -2.506181162 | AC91: -8.926949063
AB92: -2.792336959 | AC92: -8.723115945
AB93: -3.078492756 | AC93: -8.496873364
AB94: -3.364648554 | AC94: -8.245322406
AB95: -3.650804351 | AC95: -7.964617531
AB96: -3.936960148 | AC96: -7.649481373
AB97: -4.223115945 | AC97: -7.292336959
AB98: -4.509271743 | AC98: -6.881606087
AB99: -4.79542754 | AC99: -6.397911827
AB100: -5.081583337 | AC100: -5.803742761
AB101: -5.367739135 | AC101: -5.003090581
AB102: -5.653894932 | AC102: -3.000000119
Y103: X1 | AB103: =AB109-Q2 -> -5.653894932 | AC103: =AE109 -> -3
Y104: X2 | AB104: =AB109+Q2 -> 8.653894932 | AC104: =AE109 -> -3
Y106: Y1 | AB106: =AB109 -> 1.5 | AC106: =AE109+(Q2) -> 4.153894932
Y107: Y2 | AB107: =AB109 -> 1.5 | AC107: =AE109-(Q2) -> -10.15389493
Y108: =AB108-AE108 -> 4.5 | AB108: =AB109-Y110 -> -15.5 | AE108: =AE109-Y110 -> -20
Y109: =AB109-AE109 -> 4.5 | AB109: =Y1 -> 1.5 | AE109: =Y2 -> -3
Y110: =MAX(X112:X113) -> 17 | AB110: =Y110+AB109 -> 18.5 | AE110: =Y110+AE109 -> 14
AA111: =IF(DataEntry!E10>0,DataEntry!B10,#N/A) -> A | AB111: =IF(DataEntry!E10>0,DataEntry!D10,#N/A) -> -2 | AD111: =IF(DataEntry!E10>0,DataEntry!G10,#N/A) -> -7
X112: =MAX(DataEntry!D10:D39)-MIN(DataEntry!D10:D39) -> 6 | AA112: =IF(DataEntry!E11>0,DataEntry!B11,#N/A) -> B | AB112: =IF(DataEntry!E11>0,DataEntry!D11,#N/A) -> 1 | AD112: =IF(DataEntry!E11>0,DataEntry!G11,#N/A) -> -3
X113: =MAX(DataEntry!G10:G39)-MIN(DataEntry!G10:G39) -> 17 | AA113: =IF(DataEntry!E12>0,DataEntry!B12,#N/A) -> C | AB113: =IF(DataEntry!E12>0,DataEntry!D12,#N/A) -> 4 | AD113: =IF(DataEntry!E12>0,DataEntry!G12,#N/A) -> -8
AA114: =IF(DataEntry!E13>0,DataEntry!B13,#N/A) -> D | AB114: =IF(DataEntry!E13>0,DataEntry!D13,#N/A) -> 3 | AD114: =IF(DataEntry!E13>0,DataEntry!G13,#N/A) -> 9
AA115: =IF(DataEntry!E14>0,DataEntry!B14,#N/A) -> E | AB115: =IF(DataEntry!E14>0,DataEntry!D14,#N/A) -> 2 | AD115: =IF(DataEntry!E14>0,DataEntry!G14,#N/A) -> -4
AA116: =IF(DataEntry!E15>0,DataEntry!B15,#N/A) -> F | AB116: =IF(DataEntry!E15>0,DataEntry!D15,#N/A) -> 0 | AD116: =IF(DataEntry!E15>0,DataEntry!G15,#N/A) -> 2
AA117: =IF(DataEntry!E16>0,DataEntry!B16,#N/A) -> G | AB117: =IF(DataEntry!E16>0,DataEntry!D16,#N/A) -> 1 | AD117: =IF(DataEntry!E16>0,DataEntry!G16,#N/A) -> -1
AA118: =IF(DataEntry!E17>0,DataEntry!B17,#N/A) -> H | AB118: =IF(DataEntry!E17>0,DataEntry!D17,#N/A) -> 2 | AD118: =IF(DataEntry!E17>0,DataEntry!G17,#N/A) -> -3
AA119: =IF(DataEntry!E18>0,DataEntry!B18,#N/A) ->  | AB119: =IF(DataEntry!E18>0,DataEntry!D18,#N/A) ->  | AD119: =IF(DataEntry!E18>0,DataEntry!G18,#N/A) -> 
AA120: =IF(DataEntry!E19>0,DataEntry!B19,#N/A) ->  | AB120: =IF(DataEntry!E19>0,DataEntry!D19,#N/A) ->  | AD120: =IF(DataEntry!E19>0,DataEntry!G19,#N/A) -> 
AA121: =IF(DataEntry!E20>0,DataEntry!B20,#N/A) ->  | AB121: =IF(DataEntry!E20>0,DataEntry!D20,#N/A) ->  | AD121: =IF(DataEntry!E20>0,DataEntry!G20,#N/A) -> 
AA122: =IF(DataEntry!E21>0,DataEntry!B21,#N/A) ->  | AB122: =IF(DataEntry!E21>0,DataEntry!D21,#N/A) ->  | AD122: =IF(DataEntry!E21>0,DataEntry!G21,#N/A) -> 
AA123: =IF(DataEntry!E22>0,DataEntry!B22,#N/A) ->  | AB123: =IF(DataEntry!E22>0,DataEntry!D22,#N/A) ->  | AD123: =IF(DataEntry!E22>0,DataEntry!G22,#N/A) -> 
AA124: =IF(DataEntry!E23>0,DataEntry!B23,#N/A) ->  | AB124: =IF(DataEntry!E23>0,DataEntry!D23,#N/A) ->  | AD124: =IF(DataEntry!E23>0,DataEntry!G23,#N/A) -> 
AA125: =IF(DataEntry!E24>0,DataEntry!B24,#N/A) ->  | AB125: =IF(DataEntry!E24>0,DataEntry!D24,#N/A) ->  | AD125: =IF(DataEntry!E24>0,DataEntry!G24,#N/A) -> 
AA126: =IF(DataEntry!E25>0,DataEntry!B25,#N/A) ->  | AB126: =IF(DataEntry!E25>0,DataEntry!D25,#N/A) ->  | AD126: =IF(DataEntry!E25>0,DataEntry!G25,#N/A) -> 
AA127: =IF(DataEntry!E26>0,DataEntry!B26,#N/A) ->  | AB127: =IF(DataEntry!E26>0,DataEntry!D26,#N/A) ->  | AD127: =IF(DataEntry!E26>0,DataEntry!G26,#N/A) -> 
AA128: =IF(DataEntry!E27>0,DataEntry!B27,#N/A) ->  | AB128: =IF(DataEntry!E27>0,DataEntry!D27,#N/A) ->  | AD128: =IF(DataEntry!E27>0,DataEntry!G27,#N/A) -> 
AA129: =IF(DataEntry!E28>0,DataEntry!B28,#N/A) ->  | AB129: =IF(DataEntry!E28>0,DataEntry!D28,#N/A) ->  | AD129: =IF(DataEntry!E28>0,DataEntry!G28,#N/A) -> 
AA130: =IF(DataEntry!E29>0,DataEntry!B29,#N/A) ->  | AB130: =IF(DataEntry!E29>0,DataEntry!D29,#N/A) ->  | AD130: =IF(DataEntry!E29>0,DataEntry!G29,#N/A) -> 
AA131: =IF(DataEntry!E30>0,DataEntry!B30,#N/A) ->  | AB131: =IF(DataEntry!E30>0,DataEntry!D30,#N/A) ->  | AD131: =IF(DataEntry!E30>0,DataEntry!G30,#N/A) -> 
AA132: =IF(DataEntry!E31>0,DataEntry!B31,#N/A) ->  | AB132: =IF(DataEntry!E31>0,DataEntry!D31,#N/A) ->  | AD132: =IF(DataEntry!E31>0,DataEntry!G31,#N/A) -> 
AA133: =IF(DataEntry!E32>0,DataEntry!B32,#N/A) ->  | AB133: =IF(DataEntry!E32>0,DataEntry!D32,#N/A) ->  | AD133: =IF(DataEntry!E32>0,DataEntry!G32,#N/A) -> 
AA134: =IF(DataEntry!E33>0,DataEntry!B33,#N/A) ->  | AB134: =IF(DataEntry!E33>0,DataEntry!D33,#N/A) ->  | AD134: =IF(DataEntry!E33>0,DataEntry!G33,#N/A) -> 
AA135: =IF(DataEntry!E34>0,DataEntry!B34,#N/A) ->  | AB135: =IF(DataEntry!E34>0,DataEntry!D34,#N/A) ->  | AD135: =IF(DataEntry!E34>0,DataEntry!G34,#N/A) -> 
AA136: =IF(DataEntry!E35>0,DataEntry!B35,#N/A) ->  | AB136: =IF(DataEntry!E35>0,DataEntry!D35,#N/A) ->  | AD136: =IF(DataEntry!E35>0,DataEntry!G35,#N/A) -> 
AA137: =IF(DataEntry!E36>0,DataEntry!B36,#N/A) ->  | AB137: =IF(DataEntry!E36>0,DataEntry!D36,#N/A) ->  | AD137: =IF(DataEntry!E36>0,DataEntry!G36,#N/A) -> 
AA138: =IF(DataEntry!E37>0,DataEntry!B37,#N/A) ->  | AB138: =IF(DataEntry!E37>0,DataEntry!D37,#N/A) ->  | AD138: =IF(DataEntry!E37>0,DataEntry!G37,#N/A) -> 
AA139: =IF(DataEntry!E38>0,DataEntry!B38,#N/A) ->  | AB139: =IF(DataEntry!E38>0,DataEntry!D38,#N/A) ->  | AD139: =IF(DataEntry!E38>0,DataEntry!G38,#N/A) -> 
AA140: =IF(DataEntry!E39>0,DataEntry!B39,#N/A) ->  | AB140: =IF(DataEntry!E39>0,DataEntry!D39,#N/A) ->  | AD140: =IF(DataEntry!E39>0,DataEntry!G39,#N/A) -> 
